Workbook

Sheet Sheet2
A3: Asset Type | B3: Units | F3: Row Labels | G3: Count of Fet.Life Cycle
A4: Accessory-Attachment | B4: 19 | F4: Accessory-Attachment | G4: 19
A5: Accessory-Electronics | B5: 1 | F5: Accessory-Electronics | G5: 1 | J5: 606
A6: Accessory-Hydraulics | B6: 1 | F6: Accessory-Hydraulics | G6: 1 | J6: 38
A7: Accessory-Lighting | B7: 1 | F7: Accessory-Lighting | G7: 1 | J7: =J5-J6 -> 568
A8: Accessory-Outboard Motor | B8: 13 | F8: Accessory-Outboard Motor | G8: 13
A9: Accessory-Pump | B9: 3 | F9: Accessory-Pump | G9: 3
A10: Boat | B10: 20 | F10: Grand Total | G10: 38
A11: Equip Heavy-Backhoe-Loader | B11: 8
A12: Equip Heavy-Bulldozer | B12: 3
A13: Equip Heavy-Excavator | B13: 8
A14: Equip Heavy-Grader | B14: 5
A15: Equip Heavy-Roller | B15: 2
A16: Equip Heavy-Sewer Jet-Vac | B16: 1
A17: Equip Heavy-Tracked Construction | B17: 1
A18: EV-Ambulance | B18: 12
A19: EV-Fire Ladder | B19: 2
A20: EV-Fire Pumper | B20: 19
A21: Heavy Equipment | B21: 4
A22: Heavy-Dump-Tandem | B22: 7
A23: Heavy-Forklift | B23: 2
A24: Heavy-Semi-Tractor | B24: 2
A25: Heavy-Tractor-Mower | B25: 8
A26: Heavy-Truck (7-8) | B26: 40
A27: LE-Patrol | B27: 77
A28: LE-Unmarked | B28: 62
A29: Light-Pickup | B29: 80
A30: Light-Sedan | B30: 5
A31: Light-SUV | B31: 42
A32: Light-Van Passenger | B32: 33
A33: Medium-Truck Des 5-6 | B33: 3
A34: Mower | B34: 17
A35: Towed-Construction Equip | B35: 14
A36: Trailer | B36: 61
A37: Trailer-Heavy | B37: 9
A38: Trailer-Utility | B38: 2
A39: UTV/ATV | B39: 19
A40: Grand Total | B40: 606

Sheet Sheet1
A1: Fet.VIN / Serial Number | B1: ID | C1: Fet.Department Code | D1: Fet.Department | E1: Fet.Life Cycle | F1: Fet.Type | G1: Fet.Model Year | H1: Fet.Manufacturer | I1: Fet.Model | J1: Fet.Trim | K1: Fet.License Plate | L1: FVS lifemeter | M1: BeehiveLife | N1: Mileage/Hours | O1: Notes | P1: Fet.Disposal Date | Q1: Fet.Fiscal Year Disposed | R1: Fet.Fiscal Year Acquired | S1: Purchase Date | T1: Fet.Insurance Carrier | U1: Fet.Insurance Number | V1: Fet.Acquisition PO Value | W1: Column1 | X1: Fet.Confidence Data
A2: 1P06120EPG0001862 | B2: 6091862 2017 John Deere | C2: 609 | D2: Airport Commission | E2: Active | F2: HeavyTractorMower | G2: 2017 | H2: John Deere | J2: 6120E | L2: 390 | M2: =VLOOKUP(Table1[[#This Row],[Fet.VIN / Serial Number]],[1]Sheet1!$A$1:$D$642, 4,FALSE) -> 390 | N2: 390 | R2: 2018 | V2: 101382.5
A3: 101926808 | B3: 6096808 2011 Husqvarna PZ5426 Zero Turn Mower | C3: 609 | D3: Airport Commission | E3: Active | F3: Mower | G3: 2011 | H3: Husqvarna | I3: PZ5426 Zero Turn Mower | M3: =VLOOKUP(Table1[[#This Row],[Fet.VIN / Serial Number]],[1]Sheet1!$A$1:$D$642, 4,FALSE) -> 1,030 | N3: 1,030 | S3: 2011-07-27 | T3: Inland Marine M130220021 | U3: 2910
A4: 1P0HX15FEHT079136 | B4: 6099136 2017 John Deere HX15 Brush Cutter | C4: 609 | D4: Airport Commission | E4: Active | F4: Mower | G4: 2017 | H4: John Deere | I4: HX15 Brush Cutter | L4: 0 | M4: =VLOOKUP(Table1[[#This Row],[Fet.VIN / Serial Number]],[1]Sheet1!$A$1:$D$642, 4,FALSE) -> 0 | N4: 0
A5: 5HABE10117N002527 | B5: 2527 2007 HMSTD Trailer | C5: 214 | D5: Alternate EOC | E5: Active | F5: Trailer | G5: 2007 | H5: Homesteader | I5: Trailer | J5: 610CS | M5: =VLOOKUP(Table1[[#This Row],[Fet.VIN / Serial Number]],[1]Sheet1!$A$1:$D$642, 4,FALSE) -> 0 | S5: 2008-12-12 | U5: 2140
A6: 5HABE10117N002530 | B6: 2530 2007 HMSTD Trailer | C6: 214 | D6: Alternate EOC | E6: Active | F6: Trailer | G6: 2007 | H6: Homesteader | I6: Trailer | J6: 610CS | M6: =VLOOKUP(Table1[[#This Row],[Fet.VIN / Serial Number]],[1]Sheet1!$A$1:$D$642, 4,FALSE) -> 0 | S6: 2008-12-12 | U6: 2150
A7: 1FTFX1EF0DKD65961 | B7: 2055961 2013 FORD F150 | C7: 205 | D7: Animal Control | E7: Active | F7: LightPickup | G7: 2013 | H7: Ford | J7: MARKED | K7: CG69735 | L7: 235,736 | M7: =VLOOKUP(Table1[[#This Row],[Fet.VIN / Serial Number]],[1]Sheet1!$A$1:$D$642, 4,FALSE) -> 1,497 | N7: 235,736 | R7: 2013 | S7: 2013-01-31 | V7: 28825 | X7: 1
A8: 1FTFX1EF2FKD91593 | B8: 2051593 2015 FORD F150 | C8: 205 | D8: Animal Control | E8: Active | F8: LightPickup | G8: 2015 | H8: Ford | J8: MARKED animal control | K8: CG74050 | L8: 145,655 | M8: =VLOOKUP(Table1[[#This Row],[Fet.VIN / Serial Number]],[1]Sheet1!$A$1:$D$642, 4,FALSE) -> 0 | N8: 145,655 | R8: 2015 | S8: 2015-08-12 | T8: Comp Collision | U8: 11160 | V8: 35439 | X8: 1
A9: 5N1AT3AB2MC697135 | B9: 1277135 2021 Nissan Rogue | C9: 127 | D9: Assessor | E9: Active | F9: LightSUV | G9: 2021 | H9: Nissan | I9: Rogue | K9: CG84357 | L9: 270 | M9: =VLOOKUP(Table1[[#This Row],[Fet.VIN / Serial Number]],[1]Sheet1!$A$1:$D$642, 4,FALSE) -> 270 | N9: 270 | T9: Comp Collision | U9: 13610
A10: 5N1AT3AB9MC709202 | B10: 1279202 2021 Nissan Rogue | C10: 127 | D10: Assessor | E10: Active | F10: LightSUV | G10: 2021 | H10: Nissan | I10: Rogue | K10: CG84358 | L10: 1,403 | M10: =VLOOKUP(Table1[[#This Row],[Fet.VIN / Serial Number]],[1]Sheet1!$A$1:$D$642, 4,FALSE) -> 1,403 | N10: 1,403 | T10: Comp Collision | U10: 13600
A11: 1FMCU93128KD64782 | B11: 1514782 2008 Ford Escape | C11: 151 | D11: Assessor | E11: Active | F11: LightSUV | G11: 2008 | H11: Ford | I11: Escape | K11: CG62148 | L11: 64,727 | M11: =VLOOKUP(Table1[[#This Row],[Fet.VIN / Serial Number]],[1]Sheet1!$A$1:$D$642, 4,FALSE) -> 2,450 | N11: 64,727 | O11: Listed as 010.103 Pool in Fuelman | R11: 2008 | S11: 2008-03-27 | T11: Comp Collision | U11: 7490 | V11: 17971
A12: 1FMCU0F77JUA25456 | B12: 1335456 2018 Ford Escape | C12: 133 | D12: Building Department | E12: Active | F12: LightSUV | G12: 2018 | H12: Ford | I12: Escape | K12: CG78004 | L12: 76,788 | M12: =VLOOKUP(Table1[[#This Row],[Fet.VIN / Serial Number]],[1]Sheet1!$A$1:$D$642, 4,FALSE) -> 75,889 | N12: 76,788 | O12: the possible fuel card match for this unit says Public work with a different plate. | R12: 2018 | S12: 2017-11-01 | T12: Comp Collision | U12: 12340 | V12: 19728
A13: 1FMCU0F75JUA25455 | B13: 1335455 2018 Ford Escape | C13: 133 | D13: Building Department | E13: Active | F13: LightSUV | G13: 2018 | H13: Ford | I13: Escape | J13: S 4x2 | K13: CG78005 | L13: 72,454 | M13: =VLOOKUP(Table1[[#This Row],[Fet.VIN / Serial Number]],[1]Sheet1!$A$1:$D$642, 4,FALSE) -> 0 | N13: 72,454 | R13: 2018 | S13: 2017-11-01 | T13: Comp Collision | U13: 12330 | V13: 19728
A14: 1FTFX1E59MKD26745 | B14: 1336745 2021 Ford F150 | C14: 133 | D14: Building Department | E14: Active | F14: LightPickup | G14: 2021 | H14: Ford | I14: F150 | K14: CG84355 | L14: 17,985 | M14: =VLOOKUP(Table1[[#This Row],[Fet.VIN / Serial Number]],[1]Sheet1!$A$1:$D$642, 4,FALSE) -> 0 | N14: 17,985 | T14: Comp Collision | U14: 13670
A15: 1FMCU0F79HUC12434 | B15: 1332434 2017 Ford Escape | C15: 133 | D15: Building Department | E15: Active | F15: LightSUV | G15: 2017 | H15: Ford | I15: Escape | K15: CG76322 | L15: 74,680 | M15: =VLOOKUP(Table1[[#This Row],[Fet.VIN / Serial Number]],[1]Sheet1!$A$1:$D$642, 4,FALSE) -> 36,663 | N15: 74,680 | R15: 2017 | S15: 2017-01-03 | T15: Comp Collision | U15: 11940 | V15: 20212
A16: 1FM5K7B82HGB22997 | B16: 2112997 2017 Ford Explorer | C16: 211 | D16: Coroner | E16: Active | F16: LightSUV | G16: 2017 | H16: Ford | I16: Explorer | K16: NFI225 | L16: 54,269 | M16: =VLOOKUP(Table1[[#This Row],[Fet.VIN / Serial Number]],[1]Sheet1!$A$1:$D$642, 4,FALSE) -> 53,721 | N16: 54,269 | R16: 2017 | S16: 2017-04-13 | T16: Comp Collision | U16: 12310 | V16: 25555
A17: 5N1AT3AA7MC692858 | B17: 1112858 2021 Nissan Rogue | C17: 111 | D17: Courts | E17: Active | F17: LightSUV | G17: 2021 | H17: Nissan | I17: Rogue | K17: CG84301 | L17: 5,114 | M17: =VLOOKUP(Table1[[#This Row],[Fet.VIN / Serial Number]],[1]Sheet1!$A$1:$D$642, 4,FALSE) -> 0 | N17: 5,114 | T17: Comp Collision | U17: 13590
A18: 2FABP7BV7BX111029 | B18: 2071029 2011 FORD Crown Victoria | C18: 207 | D18: Detention Center | E18: Active | F18: LEPatrol | G18: 2011 | H18: Ford | I18: Crown Victoria | K18: CG66841 | L18: 144,410 | M18: =VLOOKUP(Table1[[#This Row],[Fet.VIN / Serial Number]],[1]Sheet1!$A$1:$D$642, 4,FALSE) -> 139,063 | N18: 144,410 | S18: 2010-12-27 | T18: Comp Collision | U18: 8500 | X18: 1
A19: 110116B003540 | B19: 2073540 2018 Husqvarna MZ61 Zero Turn Mower | C19: 207 | D19: Detention Center | E19: Active | F19: Mower | G19: 2018 | H19: Husqvarna | I19: MZ61 Zero Turn Mower | L19: 398 | M19: =VLOOKUP(Table1[[#This Row],[Fet.VIN / Serial Number]],[1]Sheet1!$A$1:$D$642, 4,FALSE) -> 40 | N19: 398
A20: 1FMEU63E48UA83775 | B20: 2072073775 2008 FORD EXPLORER | C20: 207 | D20: Detention Center | E20: Active | F20: LEUnmarked | G20: 2008 | H20: Ford | I20: Explorer | J20: GOLD | K20: DVZ891 | L20: 137,158 | M20: =VLOOKUP(Table1[[#This Row],[Fet.VIN / Serial Number]],[1]Sheet1!$A$1:$D$642, 4,FALSE) -> 138,427 | N20: 138,427 | R20: 2008 | S20: 2008-04-24 | T20: Comp Collision | U20: 11150 | V20: 21712 | X20: 1
A21: 1GCZGHFG9K1364503 | B21: 2074503 2019 Chevrolet Express | C21: 207 | D21: Detention Center | E21: Active | F21: LightVan Passenger | G21: 2019 | H21: Chevrolet | I21: Express | J21: Van | K21: CG81681 | L21: 1,722 | M21: =VLOOKUP(Table1[[#This Row],[Fet.VIN / Serial Number]],[1]Sheet1!$A$1:$D$642, 4,FALSE) -> 5 | N21: 1,722 | O21: CERP | R21: 2019 | S21: 2019-09-15 | T21: Comp Collision | U21: 13030 | V21: 28583
A22: 3042727 | B22: 2072727 2014 EZGO Golf Cart | C22: 207 | D22: Detention Center | E22: Active | F22: UTV/ATV | G22: 2014 | H22: EZGO | I22: Golf Cart | L22: 30 | M22: =VLOOKUP(Table1[[#This Row],[Fet.VIN / Serial Number]],[1]Sheet1!$A$1:$D$642, 4,FALSE) -> 0 | N22: 30
A23: 1FMJU1G55CEF47767 | B23: 2072077767 2012 FORD EXPEDITION | C23: 207 | D23: Detention Center | E23: Active | F23: LEPatrol | G23: 2012 | H23: Ford | I23: Expedition | J23: BLACK | K23: IBG696 | L23: 75,126 | M23: =VLOOKUP(Table1[[#This Row],[Fet.VIN / Serial Number]],[1]Sheet1!$A$1:$D$642, 4,FALSE) -> 76,690 | N23: 76,690 | R23: 2012 | S23: 2012-06-05 | T23: Comp Collision | U23: 8850 | V23: 32660 | X23: 1
A24: 1C4RDJAG6MC575205 | B24: 2075205 2021 DODGE DURANGO | C24: 207 | D24: Detention Center | E24: Active | F24: LEUnmarked | G24: 2021 | H24: Dodge | I24: Durango | J24: WHITE | K24: TUP638 | L24: 12,142 | M24: =VLOOKUP(Table1[[#This Row],[Fet.VIN / Serial Number]],[1]Sheet1!$A$1:$D$642, 4,FALSE) -> 8,202 | N24: 12,142 | X24: 1
A25: 1FBSS31L46DA76923 | B25: 2076923 2006 Ford Econoline | C25: 207 | D25: Detention Center | E25: Active | F25: LightVan Passenger | G25: 2006 | H25: Ford | I25: Econoline | J25: Club Wagon | K25: CG61257 | L25: 73,998 | M25: =VLOOKUP(Table1[[#This Row],[Fet.VIN / Serial Number]],[1]Sheet1!$A$1:$D$642, 4,FALSE) -> 73,998 | N25: 73,998 | R25: 2006 | S25: 2007-04-30 | T25: Comp Collision | U25: 6480 | V25: 20575
A26: 5BFAU1822CM018935 | B26: 2078935 2012 Leonard Leonard B12 Trash Trailer | C26: 207 | D26: Detention Center | E26: Active | F26: Trailer | G26: 2012 | H26: Leonard | I26: Leonard B12 Trash Trailer | J26: Litter Patrol | L26: 0 | M26: =VLOOKUP(Table1[[#This Row],[Fet.VIN / Serial Number]],[1]Sheet1!$A$1:$D$642, 4,FALSE) -> 0 | N26: 0 | S26: 2013-04-22 | T26: Inland Marine M130220021 | U26: 3730
A27: 2C4RDGBG3DR628824 | B27: 2078824 2013 DODGE Grand Caravan | C27: 207 | D27: Detention Center | E27: Active | F27: LightVan Passenger | G27: 2013 | H27: Dodge | I27: Caravan | K27: CG69736 | M27: =VLOOKUP(Table1[[#This Row],[Fet.VIN / Serial Number]],[1]Sheet1!$A$1:$D$642, 4,FALSE) -> 57,138 | N27: 57,138 | O27: 2C4RDGBG3DR628824 Correct 2C4RDGB3DR628824 INCORRECT | R27: 2013 | S27: 2014-02-06 | T27: Comp Collision | U27: 9400 | V27: 21487 | X27: 1
A28: 1FM5K7B80FGB83780 | B28: 2072073780 2015 FORD EXPLORER | C28: 207 | D28: Detention Center | E28: Active | F28: LEUnmarked | G28: 2015 | H28: Ford | I28: Explorer | J28: BLACK | K28: KYY407 | L28: 76,844 | M28: =VLOOKUP(Table1[[#This Row],[Fet.VIN / Serial Number]],[1]Sheet1!$A$1:$D$642, 4,FALSE) -> 76,842 | N28: 76,844 | R28: 2015 | S28: 2015-03-11 | T28: Comp Collision | U28: 11760 | V28: 24861 | X28: 1
A29: 2C4RDGBG6DR765630 | B29: 2072075630 2013 DODGE CARAVAN | C29: 207 | D29: Detention Center | E29: Active | F29: LightVan Passenger | G29: 2013 | H29: Dodge | I29: Caravan | J29: WHITE | K29: JIM523 | L29: 85,546 | M29: =VLOOKUP(Table1[[#This Row],[Fet.VIN / Serial Number]],[1]Sheet1!$A$1:$D$642, 4,FALSE) -> 85,036 | N29: 85,546 | O29: this vin missing didgit | R29: 2013 | S29: 2013-07-22 | T29: Comp Collision | U29: 9540 | V29: 28031 | X29: 1
A30: 1FBSS3BL9ADA88007 | B30: 2072078007 2010 FORD EXPLORER | C30: 207 | D30: Detention Center | E30: Active | F30: LightVan Passenger | G30: 2010 | H30: Ford | I30: Explorer | J30: Club Wagon | K30: CG66243 | L30: 74,978 | M30: =VLOOKUP(Table1[[#This Row],[Fet.VIN / Serial Number]],[1]Sheet1!$A$1:$D$642, 4,FALSE) -> 74,908 | N30: 74,978 | R30: 2010 | S30: 2010-10-21 | T30: Comp Collision | U30: 8470 | V30: 35616 | X30: 1
A31: 2G1WD5EM1B1206810 | B31: 2056810 2011 Chevrolet IMPALA | C31: 205 | D31: Detention Center | E31: Active | F31: LEUnmarked | G31: 2011 | H31: Chevrolet | I31: Impala | J31: BLACK | K31: QYL245 | L31: 159,339 | M31: =VLOOKUP(Table1[[#This Row],[Fet.VIN / Serial Number]],[1]Sheet1!$A$1:$D$642, 4,FALSE) -> 0 | N31: 159,339 | O31: Maybe belongs to DEPT 121 Summary Court ? Tag GZJ707 expire 3/2015 New tag? | S31: 2011-06-23 | T31: Comp Collision | U31: 11230 | X31: 1
A32: 1FDUF4GT0HEC16545 | B32: 4116545 2017 Ford F450 | C32: 411 | D32: Emergency Medical Service | E32: Active | F32: EVAmbulance | G32: 2017 | H32: Ford | I32: F450 | J32: Ambulance | K32: CG77210 | L32: 118,183 | M32: =VLOOKUP(Table1[[#This Row],[Fet.VIN / Serial Number]],[1]Sheet1!$A$1:$D$642, 4,FALSE) -> 0 | N32: 118,183 | R32: 2017 | S32: 2017-06-15 | T32: Comp Collision | U32: 12090 | V32: 106750
A33: 1HTJSSKK8FH729708 | B33: 4119708 2015 International Terra Star | C33: 411 | D33: Emergency Medical Service | E33: Active | F33: EVAmbulance | G33: 2015 | H33: International | I33: Terra Star | J33: Ambulance | K33: CG74048 | L33: 200,786 | M33: =VLOOKUP(Table1[[#This Row],[Fet.VIN / Serial Number]],[1]Sheet1!$A$1:$D$642, 4,FALSE) -> 0 | N33: 200,786 | R33: 2015 | S33: 2015-06-02 | T33: Comp Collision | U33: 11090 | V33: 185025
A34: 3C7WRKCJXHG643417 | B34: 4113417 2017 Dodge 4500 | C34: 411 | D34: Emergency Medical Service | E34: Active | F34: EVAmbulance | G34: 2017 | H34: Dodge | I34: 4500 | J34: Ambulance | K34: CG77212 | L34: 198,833 | M34: =VLOOKUP(Table1[[#This Row],[Fet.VIN / Serial Number]],[1]Sheet1!$A$1:$D$642, 4,FALSE) -> 0 | N34: 198,833 | R34: 2017 | S34: 2017-06-15 | T34: Comp Collision | U34: 12100 | V34: 191400
A35: 1HTJSSKK5EH797799 | B35: 4117799 2014 International Terra Star | C35: 411 | D35: Emergency Medical Service | E35: Active | F35: EVAmbulance | G35: 2014 | H35: International | I35: Terra Star | J35: Ambulance | K35: CG72301 | L35: 180,341 | M35: =VLOOKUP(Table1[[#This Row],[Fet.VIN / Serial Number]],[1]Sheet1!$A$1:$D$642, 4,FALSE) -> 179,909 | N35: 180,341 | R35: 2014 | S35: 2013-12-31 | T35: Comp Collision | U35: 11730 | V35: 178075
A36: 1HTJSSKKXHH452434 | B36: 4112434 2017 International Terra Star | C36: 411 | D36: Emergency Medical Service | E36: Active | F36: EVAmbulance | G36: 2017 | H36: International | I36: Terra Star | J36: Ambulance | K36: CG74160 | L36: 166,141 | M36: =VLOOKUP(Table1[[#This Row],[Fet.VIN / Serial Number]],[1]Sheet1!$A$1:$D$642, 4,FALSE) -> 161,229 | N36: 166,141 | R36: 2016 | S36: 2016-06-01 | T36: Comp Collision | U36: 11380 | V36: 187550
A37: 3C7WRKCJ1JG233854 | B37: 4113854 2018 Dodge 4500 | C37: 411 | D37: Emergency Medical Service | E37: Active | F37: EVAmbulance | G37: 2018 | H37: Dodge | I37: 4500 | J37: Ambulance | K37: CG78638 | L37: 114,558 | M37: =VLOOKUP(Table1[[#This Row],[Fet.VIN / Serial Number]],[1]Sheet1!$A$1:$D$642, 4,FALSE) -> 115,970 | N37: 115,970 | R37: 2018 | S37: 2018-03-25 | T37: Comp Collision | U37: 12500 | V37: 105664
A38: FB710003 | B38: 2130003 2008 Ruddy Flatbed Trailer | C38: 213 | D38: Emergency Preparedness | E38: Active | F38: Trailer | G38: 2008 | H38: Ruddy | I38: Flatbed Trailer | L38: 384 | M38: =VLOOKUP(Table1[[#This Row],[Fet.VIN / Serial Number]],[1]Sheet1!$A$1:$D$642, 4,FALSE) -> 384 | N38: 384 | O38: Can't find on INS inland marine | R38: 2007 | S38: 2011-05-05 | V38: 2475
A39: 74720 | B39: 2134720 2018 Trailer | C39: 213 | D39: Emergency Preparedness | E39: Active | F39: Trailer | G39: 2018 | I39: Trailer | J39: Morgue Trailer | L39: 0 | M39: =VLOOKUP(Table1[[#This Row],[Fet.VIN / Serial Number]],[1]Sheet1!$A$1:$D$642, 4,FALSE) -> 0 | N39: 0 | O39: Morgue Trailer | T39: Inland Marine M130220021 | U39: 4650
A40: 4DGEB2829GA037272 | B40: 2137272 2016 Cargo Craft Trailer | C40: 213 | D40: Emergency Preparedness | E40: Active | F40: Trailer | G40: 2016 | H40: Cargo Craft | I40: Trailer | L40: 0 | M40: =VLOOKUP(Table1[[#This Row],[Fet.VIN / Serial Number]],[1]Sheet1!$A$1:$D$642, 4,FALSE) -> 0 | N40: 0 | T40: Inland Marine M130220021 | U40: 4080
A41: FB710004 | B41: 2130004 2008 Ruddy Flatbed Trailer | C41: 213 | D41: Emergency Preparedness | E41: Active | F41: Trailer | G41: 2008 | H41: Ruddy | I41: Flatbed Trailer | L41: 384 | M41: =VLOOKUP(Table1[[#This Row],[Fet.VIN / Serial Number]],[1]Sheet1!$A$1:$D$642, 4,FALSE) -> 384 | N41: 384 | O41: Can't find on INS inland marine | R41: 2007 | S41: 2011-05-05 | V41: 2475
A42: 5HABE10137N002531 | B42: 2132531 2007 HMSTD Trailer | C42: 213 | D42: Emergency Preparedness | E42: Active | F42: Trailer | G42: 2007 | H42: Homesteader | I42: Trailer | M42: =VLOOKUP(Table1[[#This Row],[Fet.VIN / Serial Number]],[1]Sheet1!$A$1:$D$642, 4,FALSE) -> 0 | N42: 0 | O42: insured in 214 | S42: 2008-12-12 | U42: 2160
A43: FB710001 | B43: 2130001 2008 Ruddy Flatbed Trailer | C43: 213 | D43: Emergency Preparedness | E43: Active | F43: Trailer | G43: 2008 | H43: Ruddy | I43: Flatbed Trailer | L43: 384 | M43: =VLOOKUP(Table1[[#This Row],[Fet.VIN / Serial Number]],[1]Sheet1!$A$1:$D$642, 4,FALSE) -> 384 | N43: 384 | O43: Can't find on INS inland marine | R43: 2007 | S43: 2011-05-05 | V43: 2475
A44: 4XARTA870FB323183 | B44: 2133183 2016 Polaris Ranger | C44: 213 | D44: Emergency Preparedness | E44: Active | F44: UTV/ATV | G44: 2016 | H44: Polaris | I44: Ranger | J44: R15RTA87AR | L44: 67 | M44: =VLOOKUP(Table1[[#This Row],[Fet.VIN / Serial Number]],[1]Sheet1!$A$1:$D$642, 4,FALSE) -> 528 | N44: 528 | O44: insured in 214 | R44: 2016 | S44: 2016-08-09 | T44: Inland Marine M130220021 | U44: 4010 | V44: 16445.6
A45: 4TELS1014E1021273 | B45: 2131273 2013 Currahee ATV Trailer | C45: 213 | D45: Emergency Preparedness | E45: Active | F45: Trailer | G45: 2013 | H45: Currahee | I45: ATV Trailer | L45: 2 | M45: =VLOOKUP(Table1[[#This Row],[Fet.VIN / Serial Number]],[1]Sheet1!$A$1:$D$642, 4,FALSE) -> 2 | N45: 2 | O45: insured in 214 | S45: 2013-08-23 | T45: Inland Marine M130220021 | U45: 3350
A46: 54GVC16T4N7054273 | B46: 2134273 2022 Cargo Trailer 54273 | C46: 213 | D46: Emergency Preparedness | E46: Active | F46: TrailerUtility | G46: 2022 | H46: South GA | I46: Trailer | J46: 7x16 Tandem Axle Cargo Trailer | M46: =VLOOKUP(Table1[[#This Row],[Fet.VIN / Serial Number]],[1]Sheet1!$A$1:$D$642, 4,FALSE) -> 0 | N46: 0 | O46: ***Possible VIN incomplete 54273 *** South Ga Cargo Manufac | S46: 2021-10-15 | V46: 5354.2
A47: 1FM5K8B80EGB02510 | B47: 2132510 2014 Ford Explorer | C47: 213 | D47: Emergency Preparedness | E47: Active | F47: LightSUV | G47: 2014 | H47: Ford | I47: Explorer | K47: CG71087 | L47: 132,999 | M47: =VLOOKUP(Table1[[#This Row],[Fet.VIN / Serial Number]],[1]Sheet1!$A$1:$D$642, 4,FALSE) -> 655 | N47: 132,999 | P47: 2017-05-12 | Q47: 2017 | R47: 2014 | S47: 2013-12-31 | T47: Comp Collision | U47: 10380 | V47: 27235
A48: 5HABE10157N002532 | B48: 2132532 2007 HMSTD Trailer | C48: 213 | D48: Emergency Preparedness | E48: Active | F48: Trailer | G48: 2007 | H48: Homesteader | I48: Trailer | M48: =VLOOKUP(Table1[[#This Row],[Fet.VIN / Serial Number]],[1]Sheet1!$A$1:$D$642, 4,FALSE) -> 0 | O48: insured in 214 | S48: 2008-12-12 | U48: 2170
A49: 5UZBE081XBD017011 | B49: 2137011 2011 BNDTN Enclosed Utility Trailer | C49: 213 | D49: Emergency Preparedness | E49: Active | F49: Trailer | G49: 2011 | H49: Bendron | I49: Enclosed Utility Trailer | J49: Diamond Cargo Enclosed Trailer | L49: 0 | M49: =VLOOKUP(Table1[[#This Row],[Fet.VIN / Serial Number]],[1]Sheet1!$A$1:$D$642, 4,FALSE) -> 0 | N49: 0 | O49: INS lists this as a 2013 and has VIN at SUZBE081XBD017011 no title document attached to verify VIN (current vin matches in online vin search) FVS lists model as Diamond Cargo INS lists model as Titan Cargo | S49: 2011-11-16 | T49: Inland Marine M130220021 | U49: 3860
A50: 3C6UR5CJ1LG205178 | B50: 2135178 2020 Dodge 2500 | C50: 213 | D50: Emergency Preparedness | E50: Active | F50: LightPickup | G50: 2020 | H50: Dodge | I50: 2500 | J50: Tradesman | K50: CG83452 | L50: 10,119 | M50: =VLOOKUP(Table1[[#This Row],[Fet.VIN / Serial Number]],[1]Sheet1!$A$1:$D$642, 4,FALSE) -> 0 | N50: 10,119 | T50: Comp Collision | U50: 13510
A51: 1N9NBB225LC322176 | B51: 2132176 2020 Nomad D20 Double Axle Trailer | C51: 213 | D51: Emergency Preparedness | E51: Active | F51: Trailer | G51: 2020 | H51: Nomad | I51: D20 Double Axle Trailer | M51: =VLOOKUP(Table1[[#This Row],[Fet.VIN / Serial Number]],[1]Sheet1!$A$1:$D$642, 4,FALSE) -> 0 | N51: 0 | O51: Command Trailer | S51: 2019-12-31 | V51: 242680.52
A52: 1T0326EJPDJ251934 | B52: 3071934 2013 John Deere 326E Skid Steer | C52: 307 | D52: Environmental Services Collections | E52: Active | F52: Equip HeavyBackhoeLoader | G52: 2013 | H52: John Deere | I52: 326E Skid Steer | J52: skid steer | L52: 8,000 | M52: =VLOOKUP(Table1[[#This Row],[Fet.VIN / Serial Number]],[1]Sheet1!$A$1:$D$642, 4,FALSE) -> 9,460 | N52: 9,460 | R52: 2014 | S52: 2013-10-18 | T52: Inland Marine M130220021 | U52: 3310
A53: 1FVHG3DV9EHFX1881 | B53: 3071881 2014 Freightliner Roll off | C53: 307 | D53: Environmental Services Collections | E53: Active | F53: HeavyTruck (78) | G53: 2014 | H53: Freightliner | I53: 114SD | J53: RollOff | K53: CG72300 | L53: 304,686 | M53: =VLOOKUP(Table1[[#This Row],[Fet.VIN / Serial Number]],[1]Sheet1!$A$1:$D$642, 4,FALSE) -> 300,299 | N53: 304,686 | O53: Class 7/8 | R53: 2014 | S53: 2014-02-06 | T53: Comp Collision | U53: 10440 | V53: 150732
A54: 1FVMC5FE1JHJJ8476 | B54: 3078476 2018 Freightliner Boom Truck | C54: 307 | D54: Environmental Services Collections | E54: Active | F54: HeavyTruck (78) | G54: 2018 | H54: Freightliner | I54: Boom Truck | J54: Grapple Loader | K54: CG77303 | L54: 121,080 | M54: =VLOOKUP(Table1[[#This Row],[Fet.VIN / Serial Number]],[1]Sheet1!$A$1:$D$642, 4,FALSE) -> 115,758 | N54: 121,080 | R54: 2017 | S54: 2017-06-20 | T54: Comp Collision | U54: 12260 | V54: 203504
A55: 1FVHG3FE4JHJZ5742 | B55: 3075742 2018 Freightliner Roll off | C55: 307 | D55: Environmental Services Collections | E55: Active | F55: HeavyTruck (78) | G55: 2018 | H55: Freightliner | I55: 114SD | J55: RollOff | K55: CG79116 | L55: 148,109 | M55: =VLOOKUP(Table1[[#This Row],[Fet.VIN / Serial Number]],[1]Sheet1!$A$1:$D$642, 4,FALSE) -> 136,405 | N55: 148,109 | R55: 2018 | S55: 2018-06-15 | T55: Comp Collision | U55: 12530 | V55: 151110.1
A56: 3ALHG3FE4LDMH2958 | B56: 3072958 2958 | C56: 307 | D56: Environmental Services Collections | E56: Active | F56: HeavyTruck (78) | G56: 2020 | H56: Freightliner | I56: 114SD | J56: RollOff | K56: CG83215 | L56: 67,202 | M56: =VLOOKUP(Table1[[#This Row],[Fet.VIN / Serial Number]],[1]Sheet1!$A$1:$D$642, 4,FALSE) -> 56,055 | N56: 67,202 | S56: 2019-12-17 | T56: Comp Collision | U56: 13470 | V56: 150441
A57: 1FVHG3FE6LHLS6155 | B57: 3076155 2020 Freightliner Roll off | C57: 307 | D57: Environmental Services Collections | E57: Active | F57: HeavyTruck (78) | G57: 2020 | H57: Freightliner | I57: 114SD | J57: RollOff | K57: CG81712 | L57: 102,957 | M57: =VLOOKUP(Table1[[#This Row],[Fet.VIN / Serial Number]],[1]Sheet1!$A$1:$D$642, 4,FALSE) -> 85,740 | N57: 102,957 | R57: 2019 | S57: 2019-09-17 | T57: Comp Collision | U57: 13050 | V57: 155563
A58: 4YMBU1010HG071159 | B58: 3071159 2017 CarryOn Trailer | C58: 307 | D58: Environmental Services Collections | E58: Active | F58: Trailer | G58: 2017 | H58: CarryOn | I58: Trailer | J58: 6'x10' Landscape Trailer | L58: 0 | M58: =VLOOKUP(Table1[[#This Row],[Fet.VIN / Serial Number]],[1]Sheet1!$A$1:$D$642, 4,FALSE) -> 0 | N58: 0 | O58: GWHS Trailer
A59: 1FVHG3DV4EHFK0501 | B59: 1510501 2013 Freightliner Roll off | C59: 151 | D59: Environmental Services Collections | E59: Active | F59: HeavyTruck (78) | G59: 2013 | H59: Freightliner | I59: 114SD | J59: RollOff | K59: CG69750 | L59: 286,822 | M59: =VLOOKUP(Table1[[#This Row],[Fet.VIN / Serial Number]],[1]Sheet1!$A$1:$D$642, 4,FALSE) -> 0 | N59: 286,822 | O59: Class 7/8 | R59: 2014 | S59: 2013-04-22 | T59: Comp Collision | U59: 11210 | V59: 120911.5
A60: 1FVMC5FE5JHJX3741 | B60: 3073741 2018 Freightliner M2112 Grapple Boom Truck | C60: 307 | D60: Environmental Services Collections | E60: Active | F60: HeavyTruck (78) | G60: 2018 | H60: Freightliner | I60: M2112 Grapple Boom Truck | J60: Grapple Loader | K60: CG85118 | L60: 82,560 | M60: =VLOOKUP(Table1[[#This Row],[Fet.VIN / Serial Number]],[1]Sheet1!$A$1:$D$642, 4,FALSE) -> 77,041 | N60: 82,560 | O60: CG79115 lic plate lost 10/2021 replaced by CG85118 | R60: 2018 | S60: 2018-06-15 | T60: Comp Collision | U60: 12540 | V60: 203904
A61: 3ALHG3FE2LDMH2957 | B61: 3072957 2020 Freightliner Roll off | C61: 307 | D61: Environmental Services Collections | E61: Active | F61: HeavyTruck (78) | G61: 2020 | H61: Freightliner | I61: 114SD | J61: RollOff | K61: CG83216 | L61: 65,460 | M61: =VLOOKUP(Table1[[#This Row],[Fet.VIN / Serial Number]],[1]Sheet1!$A$1:$D$642, 4,FALSE) -> 56,042 | N61: 65,460 | S61: 2020-07-16 | T61: Comp Collision | U61: 13460 | V61: 150941
A62: 012320B001661 | B62: 3071661 2020 Husqvarna Z460 Mower | C62: 307 | D62: Environmental Services Collections | E62: Active | F62: Mower | G62: 2020 | H62: Husqvarna | I62: Z460 Mower | K62: AUX 22 | L62: 182 | M62: =VLOOKUP(Table1[[#This Row],[Fet.VIN / Serial Number]],[1]Sheet1!$A$1:$D$642, 4,FALSE) -> 79,817 | N62: 79,817 | O62: Fuel Card AUX 22 | S62: 2020-08-12 | T62: Inland Marine M130220021 | U62: 5050 | V62: 5923.99
A63: 1FMCU9GDXJUA25458 | B63: 3075458 2018 Ford Escape | C63: 307 | D63: Environmental Services Collections | E63: Active | F63: LightSUV | G63: 2018 | H63: Ford | I63: Escape | J63: Recycle Car | K63: CG82708 | L63: 35,532 | M63: =VLOOKUP(Table1[[#This Row],[Fet.VIN / Serial Number]],[1]Sheet1!$A$1:$D$642, 4,FALSE) -> 33,944 | N63: 35,532 | O63: CG78024 plate lost replaced with CG82708 5/18/2020 | R63: 2018 | S63: 2017-11-01 | T63: Comp Collision | U63: 12320 | V63: 22887
A64: 1FTWX33516ED84526 | B64: 3054526 2006 Ford F350 | C64: 305 | D64: Environmental Services Landfill | E64: Active | F64: LightPickup | G64: 2006 | H64: Ford | I64: F350 | K64: CG61260 | L64: 82,868 | M64: =VLOOKUP(Table1[[#This Row],[Fet.VIN / Serial Number]],[1]Sheet1!$A$1:$D$642, 4,FALSE) -> 83,252 | N64: 83,252 | O64: PO says 499.903 Transferred from PW to Landfill on 11/5/2019 | R64: 2006 | S64: 2007-04-30 | T64: Comp Collision | U64: 11200 | V64: 21519
A65: 16MBB1010HD075604 | B65: 3055604 2017 MGS TRAIL Godwin Pump Trailer | C65: 305 | D65: Environmental Services Landfill | E65: Active | F65: Trailer | G65: 2017 | H65: MGS TRAIL | I65: Godwin Pump Trailer | J65: Blue Pump Trailer | M65: =VLOOKUP(Table1[[#This Row],[Fet.VIN / Serial Number]],[1]Sheet1!$A$1:$D$642, 4,FALSE) -> 0 | N65: 0 | R65: 2018 | S65: 2017-10-27
A66: 1FT7X2B65BEB20180 | B66: 3050180 2011 Ford F250 | C66: 305 | D66: Environmental Services Landfill | E66: Active | F66: LightPickup | G66: 2011 | H66: Ford | I66: F250 | J66: Light Rescue | K66: CG66837 | L66: 97,703 | M66: =VLOOKUP(Table1[[#This Row],[Fet.VIN / Serial Number]],[1]Sheet1!$A$1:$D$642, 4,FALSE) -> 97,703 | N66: 97,703 | O66: TSA Listed as 060.205 in Fuelman Also 502.305 LANDFILL TSA TRANSFERRED FROM 499.903.50713 TRANSFERRED TO 50230550713 on 4/30/2020 | R66: 2011 | S66: 2010-11-12 | T66: Comp Collision | U66: 9860 | V66: 26331
A67: 1T0850KXCFF288729 | B67: 3058729 2016 John Deere 850K Bulldozer | C67: 305 | D67: Environmental Services Landfill | E67: Active | F67: Equip HeavyBulldozer | G67: 2016 | H67: John Deere | I67: 850K Bulldozer | J67: Waste HandlerTrash Dozer | L67: 7,451 | M67: =VLOOKUP(Table1[[#This Row],[Fet.VIN / Serial Number]],[1]Sheet1!$A$1:$D$642, 4,FALSE) -> 7,276 | N67: 7,451 | R67: 2016 | S67: 2015-12-28 | V67: 298160.8
A68: KBUMHDPCEK1K11180 | B68: 3051180 2019 Kubota M6131 Tractor | C68: 305 | D68: Environmental Services Landfill | E68: Active | F68: HeavyTractorMower | G68: 2019 | H68: Kubota | I68: M6131 Tractor | L68: 327 | M68: =VLOOKUP(Table1[[#This Row],[Fet.VIN / Serial Number]],[1]Sheet1!$A$1:$D$642, 4,FALSE) -> 299 | N68: 327
A69: PS079400018 | B69: 3050018 2015 LSC Environmental Products LSC PosiShell 2000R | C69: 305 | D69: Environmental Services Landfill | E69: Active | F69: TowedConstruction Equip | G69: 2015 | H69: LSC Environmental Products | I69: LSC PosiShell 2000R | L69: 565 | M69: =VLOOKUP(Table1[[#This Row],[Fet.VIN / Serial Number]],[1]Sheet1!$A$1:$D$642, 4,FALSE) -> 549 | N69: 565 | O69: REBUILT | R69: 2017 | S69: 2017-04-13 | V69: 75610.48
A70: 1FVACXFE8MHMK3508 | B70: 3053508 2021 Freightliner M2106 Fuel Truck | C70: 305 | D70: Environmental Services Landfill | E70: Active | F70: MediumTruck Des 56 | G70: 2021 | H70: Freightliner | I70: M2106 Fuel Truck | J70: Fuel Truck | K70: CG82906 | L70: 2,281 | M70: =VLOOKUP(Table1[[#This Row],[Fet.VIN / Serial Number]],[1]Sheet1!$A$1:$D$642, 4,FALSE) -> 0 | N70: 2,281 | R70: 2020 | S70: 2020-06-09 | T70: Comp Collision | U70: 13450 | V70: 184642.79
A71: 50647 | B71: 3050647 2011 Kubota | C71: 305 | D71: Environmental Services Landfill | E71: Active | F71: HeavyTractorMower | G71: 2011 | H71: Kubota | J71: Tractor | L71: 2,134 | M71: =VLOOKUP(Table1[[#This Row],[Fet.VIN / Serial Number]],[1]Sheet1!$A$1:$D$642, 4,FALSE) -> 0 | N71: 2,134 | S71: 2012-02-02
A72: 5SPDG2639GW200675 | B72: 3050675 2016 Rampant Lowboy Trailer | C72: 305 | D72: Environmental Services Landfill | E72: Active | F72: TrailerHeavy | G72: 2016 | H72: Rampant | I72: Lowboy Trailer | K72: CG74157 | L72: 0 | M72: =VLOOKUP(Table1[[#This Row],[Fet.VIN / Serial Number]],[1]Sheet1!$A$1:$D$642, 4,FALSE) -> 0 | N72: 0 | O72: Insurance data has this in 305? | R72: 2016 | S72: 2016-03-23 | T72: Comp Collision | U72: 12350 | V72: 51694
A73: 1T0850KXEF274347 | B73: 3054347 2015 John Deere | C73: 305 | D73: Environmental Services Landfill | E73: Active | F73: Equip HeavyBulldozer | G73: 2015 | H73: John Deere | I73: 850K Bulldozer | J73: Dirt Dozer | L73: 5,469 | M73: =VLOOKUP(Table1[[#This Row],[Fet.VIN / Serial Number]],[1]Sheet1!$A$1:$D$642, 4,FALSE) -> 0 | N73: 5,469 | R73: 2015 | S73: 2015-01-22 | V73: 305969
A74: 11796 | B74: 3051796 2017 Kubota F2690 | C74: 305 | D74: Environmental Services Landfill | E74: Active | F74: Mower | G74: 2017 | H74: Kubota | I74: F2690 | J74: Front Deck Mower | L74: 769 | M74: =VLOOKUP(Table1[[#This Row],[Fet.VIN / Serial Number]],[1]Sheet1!$A$1:$D$642, 4,FALSE) -> 730 | N74: 769
A75: 5HZBF162XELJE1330 | B75: 3051330 2014 VacTron LP533 SDT Vacuum Trailer | C75: 305 | D75: Environmental Services Landfill | E75: Active | F75: TowedConstruction Equip | G75: 2014 | H75: VacTron | I75: LP533 SDT Vacuum Trailer | L75: 86 | M75: =VLOOKUP(Table1[[#This Row],[Fet.VIN / Serial Number]],[1]Sheet1!$A$1:$D$642, 4,FALSE) -> 0 | N75: 86 | O75: DHEC license number 2236822008 NJPA listed in duplicate record | S75: 2014-11-24 | V75: 66474.72
A76: 1M2P296C01M056105 | B76: 3056105 2001 Mack Hydroforce | C76: 305 | D76: Environmental Services Landfill | E76: Active | F76: HeavyTruck (78) | G76: 2001 | H76: Mack | I76: Hydroforce | J76: Water Truck | K76: CG81711 | L76: 136,132 | M76: =VLOOKUP(Table1[[#This Row],[Fet.VIN / Serial Number]],[1]Sheet1!$A$1:$D$642, 4,FALSE) -> 136,132 | N76: 136,132 | R76: 2019 | S76: 2019-09-18 | T76: Comp Collision | U76: 13020 | V76: 73364
A77: 017534 | B77: 3057534 2021 Boom Mower3pt hitch | C77: 305 | D77: Environmental Services Landfill | E77: Active | F77: AccessoryAttachment | G77: 2021 | H77: Hardee | I77: LR50160 | J77: Side Cutter Attachement | M77: =VLOOKUP(Table1[[#This Row],[Fet.VIN / Serial Number]],[1]Sheet1!$A$1:$D$642, 4,FALSE) -> 0 | N77: 0 | O77: Budget: 20,000 502.30550707 Model LR50160 Serial : 017534 Patent 540 | R77: 2022 | T77: Inland Marine M130220021 | U77: 5250 | V77: 19700
A78: 1FTEW1E59KKF04360 | B78: 3054360 2019 Ford F150 | C78: 305 | D78: Environmental Services Landfill | E78: Active | F78: LightPickup | G78: 2019 | H78: Ford | I78: F150 | J78: 4x4 Super Cab | K78: CG81810 | L78: 4,464 | M78: =VLOOKUP(Table1[[#This Row],[Fet.VIN / Serial Number]],[1]Sheet1!$A$1:$D$642, 4,FALSE) -> 3,479 | N78: 4,464 | O78: CERP lists acquired 2020 not 19 and value at 26,839 | R78: 2019 | S78: 2019-11-01 | T78: Comp Collision | U78: 13150 | V78: 31639
A79: 1MG8383 | B79: 3058383 502 Hydro Max Engine | C79: 305 | D79: Environmental Services Landfill | E79: Active | F79: AccessoryAttachment | H79: Kubota | I79: D1105 | M79: =VLOOKUP(Table1[[#This Row],[Fet.VIN / Serial Number]],[1]Sheet1!$A$1:$D$642, 4,FALSE) -> 0 | N79: 0 | O79: Engine mounted on Power Washer Trailer | S79: 2021-09-16
A80: RVA23492160 | B80: 3052160 2005 Finn T120LF Hydroseeder | C80: 305 | D80: Environmental Services Landfill | E80: Active | F80: TowedConstruction Equip | G80: 2005 | H80: Finncorp | I80: Hydroseeder T120TII | J80: LF2160 | M80: =VLOOKUP(Table1[[#This Row],[Fet.VIN / Serial Number]],[1]Sheet1!$A$1:$D$642, 4,FALSE) -> 375 | N80: 375 | O80: retained per justification 6/9/17 Not to be replaced | R80: 2007 | U80: 2190 | V80: 48585
A81: CAT0730CCTFF01154 | B81: 3051154 2015 Caterpillar ORT | C81: 305 | D81: Environmental Services Landfill | E81: Active | F81: HeavyDumpTandem | G81: 2015 | H81: Caterpillar | J81: Off Road Articulated Dump Truck | L81: 6,745 | M81: =VLOOKUP(Table1[[#This Row],[Fet.VIN / Serial Number]],[1]Sheet1!$A$1:$D$642, 4,FALSE) -> 6,855 | N81: 6,855 | R81: 2016 | S81: 2016-02-23 | V81: 414919.25
A82: 1635910 | B82: 3055910 2016 Global Pump Global Pump 6GST | C82: 305 | D82: Environmental Services Landfill | E82: Active | F82: AccessoryPump | G82: 2016 | H82: Global Pump | I82: Global Pump 6GST | L82: 1,591 | M82: =VLOOKUP(Table1[[#This Row],[Fet.VIN / Serial Number]],[1]Sheet1!$A$1:$D$642, 4,FALSE) -> 1,591 | N82: 1,591 | S82: 2017-01-03 | U82: 4240
A83: 1G9DD3029MB336433 | B83: 3056433 2021 Globe Trailer GTDD3023045YD | C83: 305 | D83: Environmental Services Landfill | E83: Active | F83: TrailerHeavy | G83: 2021 | H83: Globe Trailer | I83: GTDD3023045YD | J83: 45yard | K83: CG84361 | L83: 0 | M83: =VLOOKUP(Table1[[#This Row],[Fet.VIN / Serial Number]],[1]Sheet1!$A$1:$D$642, 4,FALSE) -> 0 | N83: 0 | O83: mfg date 032021 Dump Trailer | S83: 2021-04-08T13:04:00 | T83: Comp Collision | U83: 13730 | V83: 45746.61
A84: 1XPCDP9X1MD771283 | B84: 3051283 2021 Peterbilt 567 | C84: 305 | D84: Environmental Services Landfill | E84: Active | F84: HeavySemiTractor | G84: 2021 | H84: Peterbilt | I84: 567 | J84: Road Tractor DayCab | K84: CG84104 | L84: 6,126 | M84: =VLOOKUP(Table1[[#This Row],[Fet.VIN / Serial Number]],[1]Sheet1!$A$1:$D$642, 4,FALSE) -> 4,290 | N84: 6,126 | O84: Tandem Axle Day Cab Tractor w/Air Ride | R84: 2021 | S84: 2021-02-26T14:06:00 | U84: 13630 | V84: 145355.95
A85: 202109074466 | B85: 3054466 502 Hydro Max Pressure Washer | C85: 305 | D85: Environmental Services Landfill | E85: Active | F85: AccessoryAttachment | G85: 2021 | H85: Hydro Max | I85: DCD804KuG | M85: =VLOOKUP(Table1[[#This Row],[Fet.VIN / Serial Number]],[1]Sheet1!$A$1:$D$642, 4,FALSE) -> 0 | N85: 0 | O85: Hydro Max Model DCD8040KuG mounted on trailer | S85: 2021-09-16 | T85: Inland Marine M130220021 | U85: 5240
A86: VCE0L90HV0S625946 | B86: 3055946 2021 Volvo Front End Loader | C86: 305 | D86: Environmental Services Landfill | E86: Active | F86: Equip HeavyBackhoeLoader | G86: 2021 | H86: Volvo | I86: L90H | J86: Front End Wheel Loader | L86: 15 | M86: =VLOOKUP(Table1[[#This Row],[Fet.VIN / Serial Number]],[1]Sheet1!$A$1:$D$642, 4,FALSE) -> 66 | N86: 66 | O86: Maintenance agreement through Volvo | R86: 2022 | V86: 219521
A87: 4500P1312LR065654 | B87: 3055654 2020 Atlas Copco PAS150 Dewatering Pump | C87: 305 | D87: Environmental Services Landfill | E87: Active | F87: AccessoryPump | G87: 2020 | H87: Atlas Copco | I87: PAS150 Dewatering Pump | L87: 575 | M87: =VLOOKUP(Table1[[#This Row],[Fet.VIN / Serial Number]],[1]Sheet1!$A$1:$D$642, 4,FALSE) -> 0 | N87: 575
A88: 17643910/01 | B88: 3050/01 2017 Godwin Pump | C88: 305 | D88: Environmental Services Landfill | E88: Active | F88: AccessoryPump | G88: 2017 | H88: Godwin | I88: Pump | J88: CD150M Blue | L88: 2,794 | M88: =VLOOKUP(Table1[[#This Row],[Fet.VIN / Serial Number]],[1]Sheet1!$A$1:$D$642, 4,FALSE) -> 2,794 | N88: 2,794 | O88: Pump is attached to trailer | P88: 2017-05-16 | Q88: 2017 | R88: 2018 | S88: 2017-10-27 | U88: 4600 | V88: 33193.33
A89: AT1156 | B89: 3051156 2017 Tana E380 Compactor | C89: 305 | D89: Environmental Services Landfill | E89: Active | F89: Heavy Equipment | G89: 2017 | H89: Tana | I89: E380 Compactor | L89: 4,322 | M89: =VLOOKUP(Table1[[#This Row],[Fet.VIN / Serial Number]],[1]Sheet1!$A$1:$D$642, 4,FALSE) -> 0 | N89: 4,322 | R89: 2017 | S89: 2017-04-28 | T89: Inland Marine M130220021 | U89: 4360 | V89: 600154.95
A90: BLZCO222116932887 | B90: 3052887 2021 Hydro Max Trailer | C90: 305 | D90: Environmental Services Landfill | E90: Active | F90: Trailer | G90: 2021 | H90: Blazer Trailer | J90: 7'x14' Tandem Trailer with Power washer | M90: =VLOOKUP(Table1[[#This Row],[Fet.VIN / Serial Number]],[1]Sheet1!$A$1:$D$642, 4,FALSE) -> 0 | N90: 0 | O90: Budget:22,000 502.30550707 No procurement number less than $30,000 3 quotes to purchase 7'x14' TraileropenTandem 5200lb Axles, Electric Brakes, Treated Floor | R90: 2022 | S90: 2021-09-16 | V90: 19495
A91: 1T0850KXKHF317797 | B91: 3057797 2017 John Deere Dozer850K | C91: 305 | D91: Environmental Services Landfill | E91: Active | F91: Equip HeavyBulldozer | G91: 2017 | H91: John Deere | I91: 850K Bulldozer | J91: Waste Handler Trash Dozer | L91: 6,951 | M91: =VLOOKUP(Table1[[#This Row],[Fet.VIN / Serial Number]],[1]Sheet1!$A$1:$D$642, 4,FALSE) -> 4,520 | N91: 6,951 | R91: 2018 | S91: 2017-10-06 | V91: 331218.5
A92: CAT0324DVJJG01055 | B92: 3051055 2009 Caterpillar | C92: 305 | D92: Environmental Services Landfill | E92: Active | F92: Equip HeavyExcavator | G92: 2009 | H92: Caterpillar | J92: 324 Tracked Exavator | L92: 8,518 | M92: =VLOOKUP(Table1[[#This Row],[Fet.VIN / Serial Number]],[1]Sheet1!$A$1:$D$642, 4,FALSE) -> 8,587 | N92: 8,587 | S92: 2009-12-07
A93: 0329EAPLW01134 | B93: 3051134 2013 Caterpillar 329 Excavator | C93: 305 | D93: Environmental Services Landfill | E93: Active | F93: Equip HeavyExcavator | G93: 2013 | H93: Caterpillar | I93: 329 | J93: Tracked Excavator | L93: 7,376 | M93: =VLOOKUP(Table1[[#This Row],[Fet.VIN / Serial Number]],[1]Sheet1!$A$1:$D$642, 4,FALSE) -> 7,220 | N93: 7,376 | S93: 2014-06-19
A94: VCEC250EK00314118 | B94: 3054118 2021 Volvo EC250E | C94: 305 | D94: Environmental Services Landfill | E94: Active | F94: Equip HeavyExcavator | G94: 2021 | H94: Volvo | I94: EC250E | J94: EC250E | L94: 320 | M94: =VLOOKUP(Table1[[#This Row],[Fet.VIN / Serial Number]],[1]Sheet1!$A$1:$D$642, 4,FALSE) -> 0 | N94: 320 | R94: 2021 | S94: 2021-04-21T09:37:00 | V94: 225586.02
A95: SN2160 | B95: 3052160 2007 Finncorp Hydroseeder T120TII | C95: 305 | D95: Environmental Services Landfill | E95: Active | F95: TowedConstruction Equip | G95: 2007 | H95: Finncorp | I95: Hydroseeder T120TII | L95: 2,120 | M95: =VLOOKUP(Table1[[#This Row],[Fet.VIN / Serial Number]],[1]Sheet1!$A$1:$D$642, 4,FALSE) ->  | N95: 2,120 | S95: 2007-04-30
A96: 1D9BU1823GG460048 | B96: 3050048 2016 KWPRD Trailer | C96: 305 | D96: Environmental Services Landfill | E96: Active | F96: Trailer | G96: 2016 | H96: KWPRD | I96: Trailer | J96: skid steer trailer | L96: 0 | M96: =VLOOKUP(Table1[[#This Row],[Fet.VIN / Serial Number]],[1]Sheet1!$A$1:$D$642, 4,FALSE) -> 0 | N96: 0 | S96: 2016-04-11
A97: 1FT7X2B67CEC99355 | B97: 3059355 2012 Ford F250 | C97: 305 | D97: Environmental Services Landfill | E97: Active | F97: LightPickup | G97: 2012 | H97: Ford | I97: F250 | J97: 4x4 | K97: CG69741 | L97: 70,620 | M97: =VLOOKUP(Table1[[#This Row],[Fet.VIN / Serial Number]],[1]Sheet1!$A$1:$D$642, 4,FALSE) -> 69,114 | N97: 70,620 | O97: Spec Ops TRANSFERRED FROM 499.903.50713 TRANSFERRED TO 502.30550713 on 11/25/2019 heo3 truck | R97: 2013 | S97: 2013-01-03 | T97: Comp Collision | U97: 9980 | V97: 24734
A98: 1FTEW1E50JFC55843 | B98: 3055843 2018 Ford F150 | C98: 305 | D98: Environmental Services Landfill | E98: Active | F98: LightPickup | G98: 2018 | H98: Ford | I98: F150 | K98: CG79120 | L98: 29,228 | M98: =VLOOKUP(Table1[[#This Row],[Fet.VIN / Serial Number]],[1]Sheet1!$A$1:$D$642, 4,FALSE) -> 27,025 | N98: 29,228 | R98: 2018 | S98: 2018-06-15 | T98: Comp Collision | U98: 12570 | V98: 31920
A99: 201240401C4TL | B99: 305C4TL 2020 TarpOMatic | C99: 305 | D99: Environmental Services Landfill | E99: Active | F99: Equip HeavyTracked Construction | G99: 2020 | H99: TarpOMatic | L99: 0 | M99: =VLOOKUP(Table1[[#This Row],[Fet.VIN / Serial Number]],[1]Sheet1!$A$1:$D$642, 4,FALSE) -> 0 | N99: 0 | O99: engine # make grouped asset Model: Georgetown Landfill Serial #: 201240401C4TL Date of Manufacture: 12/2020 Engine #: C6L03369 | S99: 2020-12-29T08:00:00 | U99: 5110 | V99: 78637
A100: 1NPCXPEX4LD629578 | B100: 3059578 2020 Peterbilt Dump Truck | C100: 305 | D100: Environmental Services Landfill | E100: Active | F100: HeavyDumpTandem | G100: 2020 | H100: Peterbilt | I100: Dump Truck | K100: CG82904 | L100: 30,366 | M100: =VLOOKUP(Table1[[#This Row],[Fet.VIN / Serial Number]],[1]Sheet1!$A$1:$D$642, 4,FALSE) -> 28,771 | N100: 30,366 | R100: 2020 | S100: 2020-06-25 | T100: Comp Collision | U100: 13400 | V100: 176516
A101: 016631 | B101: 3056631 2020 Hardee PTS144 | C101: 305 | D101: Environmental Services Landfill | E101: Active | F101: AccessoryAttachment | G101: 2020 | H101: Hardee | I101: PTS144 | J101: Box Blade Attachment | M101: =VLOOKUP(Table1[[#This Row],[Fet.VIN / Serial Number]],[1]Sheet1!$A$1:$D$642, 4,FALSE) -> 0 | N101: 0 | O101: Serial 016631 | R101: 2021 | S101: 2021-02-04T15:44:00 | V101: 5606.4
A102: AT1170 | B102: 3051170 2018 Tana E380 Compactor | C102: 305 | D102: Environmental Services Landfill | E102: Active | F102: Heavy Equipment | G102: 2018 | H102: Tana | I102: E380 Compactor | L102: 4,260 | M102: =VLOOKUP(Table1[[#This Row],[Fet.VIN / Serial Number]],[1]Sheet1!$A$1:$D$642, 4,FALSE) -> 4,454 | N102: 4,454 | R102: 2018 | S102: 2017-11-14 | T102: Inland Marine M130220021 | U102: 4640 | V102: 652500
A103: 1HBHR120300005 | B103: 3050005 2020 BHOG 2820RR1 Mower | C103: 305 | D103: Environmental Services Landfill | E103: Active | F103: AccessoryAttachment | G103: 2020 | H103: BushHog | I103: 2820RR1 Mower | L103: 236 | M103: =VLOOKUP(Table1[[#This Row],[Fet.VIN / Serial Number]],[1]Sheet1!$A$1:$D$642, 4,FALSE) -> 236 | N103: 236
A104: 1M0825MAKKM021330 | B104: 3141330 2019 John Deere Gator | C104: 314 | D104: Environmental Services Methane Gas Recovery | E104: Active | F104: UTV/ATV | G104: 2019 | H104: John Deere | I104: Gator | L104: 2,227 | M104: =VLOOKUP(Table1[[#This Row],[Fet.VIN / Serial Number]],[1]Sheet1!$A$1:$D$642, 4,FALSE) -> 0 | N104: 2,227 | O104: Aux 30 fuel card for Landfill | R104: 2019 | V104: 15396.97
A105: 1T0330GKKKF352117 | B105: 3132117 2018 John Deere 330G Skid Steer | C105: 313 | D105: Environmental Services MRF | E105: Active | F105: Equip HeavyBackhoeLoader | G105: 2018 | H105: John Deere | I105: 330G Skid Steer | J105: skid steer | L105: 4,007 | M105: =VLOOKUP(Table1[[#This Row],[Fet.VIN / Serial Number]],[1]Sheet1!$A$1:$D$642, 4,FALSE) -> 4,003 | N105: 4,007 | R105: 2019 | S105: 2019-04-01 | V105: 53700
A106: 1132878 | B106: 3132878 2021 Erskine Forks | C106: 313 | D106: Environmental Services MRF | E106: Active | F106: AccessoryAttachment | G106: 2021 | J106: 48 inch | M106: =VLOOKUP(Table1[[#This Row],[Fet.VIN / Serial Number]],[1]Sheet1!$A$1:$D$642, 4,FALSE) -> 0 | N106: 0 | R106: 2022 | S106: 2021-11-29 | V106: 1175
A107: 4YZDT122161010591 | B107: 3080591 2006 Proline Dump Trailer | C107: 308 | D107: Environmental Services Recycling | E107: Active | F107: Trailer | G107: 2006 | H107: Proline | I107: Dump Trailer | J107: PD613 | L107: 0 | M107: =VLOOKUP(Table1[[#This Row],[Fet.VIN / Serial Number]],[1]Sheet1!$A$1:$D$642, 4,FALSE) -> 0 | N107: 0 | S107: 2011-02-08 | T107: Inland Marine M130220021 | U107: 2080
A108: 1FTBF2A65KEG08799 | B108: 3088799 2019 Ford F250 | C108: 308 | D108: Environmental Services Recycling | E108: Active | F108: LightPickup | G108: 2019 | H108: Ford | I108: F250 | J108: 4x2 campertop | K108: CG81770 | L108: 15,968 | M108: =VLOOKUP(Table1[[#This Row],[Fet.VIN / Serial Number]],[1]Sheet1!$A$1:$D$642, 4,FALSE) -> 0 | N108: 15,968 | O108: Yes, Per Grant, Cannot sell before manufacturer's life expiration date. Per Scott's email dated 8/8/19, do not see before 4/1/2026. 4X2 | R108: 2019 | S108: 2019-10-25 | T108: Comp Collision | U108: 13120 | V108: 26339
A109: 1P9FP1925KA277469 | B109: 3087469 2019 Protainer ProTilt 16 Tandem Trailer | C109: 308 | D109: Environmental Services Recycling | E109: Active | F109: Trailer | G109: 2019 | H109: Protainer | I109: ProTilt 16 Tandem Trailer | K109: CG81333 | L109: 3 | M109: =VLOOKUP(Table1[[#This Row],[Fet.VIN / Serial Number]],[1]Sheet1!$A$1:$D$642, 4,FALSE) -> 3 | N109: 3 | R109: 2019 | S109: 2019-04-01 | V109: 18575
A110: 1FTFX1CF3CFC22528 | B110: 3072528 2012 Ford F150 | C110: 307 | D110: Environmental Services Recycling | E110: Active | F110: LightPickup | G110: 2012 | H110: Ford | I110: F150 | J110: 4x2 | K110: CG69512 | L110: 80,595 | M110: =VLOOKUP(Table1[[#This Row],[Fet.VIN / Serial Number]],[1]Sheet1!$A$1:$D$642, 4,FALSE) -> 71,947 | N110: 80,595 | R110: 2012 | S110: 2012-06-25 | T110: Comp Collision | U110: 9060 | V110: 19308
A111: 1FVACWFCXMHMP8955 | B111: 3088955 2020 Freightliner M2 | C111: 308 | D111: Environmental Services Recycling | E111: Active | F111: MediumTruck Des 56 | G111: 2020 | H111: Freightliner | I111: M2 | J111: Viper Rear Loader | K111: CG84103 | L111: 17,437 | M111: =VLOOKUP(Table1[[#This Row],[Fet.VIN / Serial Number]],[1]Sheet1!$A$1:$D$642, 4,FALSE) -> 0 | N111: 17,437 | U111: 13580 | V111: 138993
A112: 1FTEX1C50KKE96617 | B112: 3086617 2019 Ford F150 | C112: 308 | D112: Environmental Services Recycling | E112: Active | F112: LightPickup | G112: 2019 | H112: Ford | I112: F150 | J112: 4x2 | K112: CG82687 | L112: 32,102 | M112: =VLOOKUP(Table1[[#This Row],[Fet.VIN / Serial Number]],[1]Sheet1!$A$1:$D$642, 4,FALSE) -> 34,139 | N112: 34,139 | R112: 2020 | S112: 2020-04-25 | T112: Comp Collision | U112: 13340 | V112: 28641
A113: 1P9RG21129A371003 | B113: 3081003 2008 Protainer Trailer | C113: 308 | D113: Environmental Services Recycling | E113: Active | F113: Trailer | G113: 2008 | H113: Protainer | I113: Trailer | J113: ProGravity Recycling Trailer | L113: 3 | M113: =VLOOKUP(Table1[[#This Row],[Fet.VIN / Serial Number]],[1]Sheet1!$A$1:$D$642, 4,FALSE) -> 3 | N113: 3 | O113: ProGravity Recycling Trailer
A114: 1FD7X2A68LEC23737 | B114: 1393737 2020 Ford F250 | C114: 139 | D114: Facility Services | E114: Active | F114: LightPickup | G114: 2020 | H114: Ford | I114: F250 | K114: CG82288 | L114: 5,673 | M114: =VLOOKUP(Table1[[#This Row],[Fet.VIN / Serial Number]],[1]Sheet1!$A$1:$D$642, 4,FALSE) -> 5,673 | N114: 5,673 | R114: 2020 | S114: 2020-01-08 | T114: Comp Collision | U114: 13170 | V114: 36144
A115: TRLC0012STD199 | B115: 139199 2005 TRAKK Trailer | C115: 139 | D115: Facility Services | E115: Active | F115: Trailer | G115: 2005 | H115: TRAKK | I115: Trailer | L115: 0 | M115: =VLOOKUP(Table1[[#This Row],[Fet.VIN / Serial Number]],[1]Sheet1!$A$1:$D$642, 4,FALSE) ->  | N115: 0 | O115: Beach Trailer | S115: 2000-01-01 | T115: Inland Marine M130220021 | U115: 5080
A116: 1FD7X2A68CEC33037 | B116: 1403037 2012 Ford F250 | C116: 139 | D116: Facility Services | E116: Active | F116: LightPickup | G116: 2012 | H116: Ford | I116: F250 | K116: CG69524 | L116: 80,916 | M116: =VLOOKUP(Table1[[#This Row],[Fet.VIN / Serial Number]],[1]Sheet1!$A$1:$D$642, 4,FALSE) -> 80,740 | N116: 80,916 | O116: Trevor Hutt | R116: 2012 | S116: 2012-07-27 | T116: Comp Collision | U116: 9150 | V116: 21678
A117: 1FD7X2A66LEC23736 | B117: 1393736 2020 Ford F250 | C117: 139 | D117: Facility Services | E117: Active | F117: LightPickup | G117: 2020 | H117: Ford | I117: F250 | K117: CG82289 | L117: 20,638 | M117: =VLOOKUP(Table1[[#This Row],[Fet.VIN / Serial Number]],[1]Sheet1!$A$1:$D$642, 4,FALSE) -> 0 | N117: 20,638 | R117: 2020 | S117: 2020-01-08 | T117: Comp Collision | U117: 13160 | V117: 36144
A118: 1FD7X2A64LEC23735 | B118: 1393735 2020 Ford F250 | C118: 139 | D118: Facility Services | E118: Active | F118: LightPickup | G118: 2020 | H118: Ford | I118: F250 | K118: CG82287 | L118: 15,386 | M118: =VLOOKUP(Table1[[#This Row],[Fet.VIN / Serial Number]],[1]Sheet1!$A$1:$D$642, 4,FALSE) -> 13,991 | N118: 15,386 | R118: 2020 | S118: 2020-01-13 | T118: Comp Collision | U118: 13180 | V118: 36144
A119: 1FD8X3G6XEEA11121 | B119: 1391121 2014 Ford F350 | C119: 139 | D119: Facility Services | E119: Active | F119: LightPickup | G119: 2014 | H119: Ford | I119: F350 | K119: CG71079 | L119: 65,847 | M119: =VLOOKUP(Table1[[#This Row],[Fet.VIN / Serial Number]],[1]Sheet1!$A$1:$D$642, 4,FALSE) -> 66,775 | N119: 66,775 | R119: 2013 | S119: 2014-04-10 | T119: Comp Collision | U119: 10590 | V119: 23349
A120: 11FTRX1C81GKF86263 | B120: 1396263 2016 Ford F150 | C120: 139 | D120: Facility Services | E120: Active | F120: LightPickup | G120: 2016 | H120: Ford | I120: F150 | J120: 4x2 Ext Cab | K120: CG76583 | L120: 54,835 | M120: =VLOOKUP(Table1[[#This Row],[Fet.VIN / Serial Number]],[1]Sheet1!$A$1:$D$642, 4,FALSE) -> 48,877 | N120: 54,835 | R120: 2017 | S120: 2017-04-13 | T120: Comp Collision | U120: 12050 | V120: 25338
A121: 5FTEE1814E1001542 | B121: 1391542 2013 Felling | C121: 139 | D121: Facility Services | E121: Active | F121: Trailer | G121: 2013 | H121: Felling | I121: FT4T Trailer | K121: CG71080 | L121: 0 | M121: =VLOOKUP(Table1[[#This Row],[Fet.VIN / Serial Number]],[1]Sheet1!$A$1:$D$642, 4,FALSE) -> 0 | N121: 0 | O121: Lift Trailer | R121: 2013 | S121: 2014-09-22 | V121: 4992.6
A122: 1FD8W3A60HEB70231 | B122: 1390231 2017 Ford F350 | C122: 139 | D122: Facility Services | E122: Active | F122: LightPickup | G122: 2017 | H122: Ford | I122: F350 | K122: CG76729 | L122: 39,920 | M122: =VLOOKUP(Table1[[#This Row],[Fet.VIN / Serial Number]],[1]Sheet1!$A$1:$D$642, 4,FALSE) -> 35,095 | N122: 39,920 | R122: 2017 | S122: 2017-01-03 | T122: Comp Collision | U122: 12010 | V122: 28927
A123: 1FTSX20548ED50709 | B123: 1390709 2008 Ford F250 | C123: 139 | D123: Facility Services | E123: Active | F123: LightPickup | G123: 2008 | H123: Ford | I123: F250 | K123: CG62134 | L123: 125,403 | M123: =VLOOKUP(Table1[[#This Row],[Fet.VIN / Serial Number]],[1]Sheet1!$A$1:$D$642, 4,FALSE) -> 119,375 | N123: 125,403 | S123: 2008-03-11 | T123: Comp Collision | U123: 7450 | V123: 23556
A124: 1HTMKAANX8H543173 | B124: 1393173 2008 International 4400 | C124: 139 | D124: Facility Services | E124: Active | F124: HeavyTruck (78) | G124: 2008 | H124: International | I124: 4400 | J124: Bucket Truck | L124: 184,972 | M124: =VLOOKUP(Table1[[#This Row],[Fet.VIN / Serial Number]],[1]Sheet1!$A$1:$D$642, 4,FALSE) -> 184,945 | N124: 184,972 | O124: Bucket Truck | T124: Comp Collision | U124: 13450
A125: 1FT7X2A64KED40718 | B125: 1390718 2019 Ford F150 | C125: 139 | D125: Facility Services | E125: Active | F125: LightPickup | G125: 2019 | H125: Ford | I125: F250 | K125: CG80245 | L125: 24,089 | M125: =VLOOKUP(Table1[[#This Row],[Fet.VIN / Serial Number]],[1]Sheet1!$A$1:$D$642, 4,FALSE) -> 23,704 | N125: 24,089 | R125: 2018 | S125: 2019-01-16 | T125: Comp Collision | U125: 12810 | V125: 30734
A126: KEN02YD0B696 | B126: 139B696 1996 Kenner Proskiff 17 | C126: 139 | D126: Facility Services | E126: Active | F126: Boat | G126: 1996 | I126: Kenner Proskiff 17 | K126: AUX 01 | L126: 0 | M126: =VLOOKUP(Table1[[#This Row],[Fet.VIN / Serial Number]],[1]Sheet1!$A$1:$D$642, 4,FALSE) -> 0 | N126: 0 | O126: Boat (DONATED BY DNR) | S126: 2014-09-22
A127: 10080 | B127: 1390080 1997 TRAKK Sky Trak 60362 | C127: 139 | D127: Facility Services | E127: Active | F127: HeavyForklift | G127: 1997 | H127: TRAKK | I127: Sky Trak 60362 | J127: Lull | L127: 4,720 | M127: =VLOOKUP(Table1[[#This Row],[Fet.VIN / Serial Number]],[1]Sheet1!$A$1:$D$642, 4,FALSE) -> 4,587 | N127: 4,720 | O127: Lull | S127: 2013-08-02
A128: 1T9CU1820AK621770 | B128: 1391770 2010 CUSTM Utility Trailer | C128: 139 | D128: Facility Services | E128: Active | F128: Trailer | G128: 2010 | H128: CUSTM | I128: Utility Trailer | L128: 10 | M128: =VLOOKUP(Table1[[#This Row],[Fet.VIN / Serial Number]],[1]Sheet1!$A$1:$D$642, 4,FALSE) -> 0 | N128: 10 | O128: Old Bobcat Trailer | S128: 2010-09-20
A129: 1T0317GJHGJ295548 | B129: 1395548 2016 John Deere | C129: 139 | D129: Facility Services | E129: Active | F129: Equip HeavyBackhoeLoader | G129: 2016 | H129: John Deere | I129: Skid Steer Loader 873 | J129: Skid Steer | L129: 535 | M129: =VLOOKUP(Table1[[#This Row],[Fet.VIN / Serial Number]],[1]Sheet1!$A$1:$D$642, 4,FALSE) -> 525 | N129: 535 | O129: Skid Steer | R129: 2017 | S129: 2016-10-04 | V129: 49778.33
A130: 5TTE2023C1039634 | B130: 3019634 2011 Felling | C130: 139 | D130: Facility Services | E130: Active | F130: TrailerHeavy | G130: 2011 | H130: Felling | L130: 101 | M130: =VLOOKUP(Table1[[#This Row],[Fet.VIN / Serial Number]],[1]Sheet1!$A$1:$D$642, 4,FALSE) -> 0 | N130: 101 | O130: Tilt Trailer for Bobcat | R130: 2012 | S130: 2011-11-16 | V130: 7239.41
A131: 1FMJU1G56CEF57207 | B131: 9997207 2012 Ford Expedition | C131: 999 | D131: Georgetown Fire | E131: Active | F131: LightSUV | G131: 2012 | H131: Ford | I131: Expedition | K131: CG69738 | L131: 188,491 | M131: =VLOOKUP(Table1[[#This Row],[Fet.VIN / Serial Number]],[1]Sheet1!$A$1:$D$642, 4,FALSE) -> 0 | N131: 188,491 | O131: Transferred to Public Works? | R131: 2012 | S131: 2013-01-03 | T131: Comp Collision | U131: 10330 | V131: 43660.9
A132: 1HTMKAZR48H557867 | B132: 9997867 2008 International Pumper | C132: 999 | D132: Georgetown Fire | E132: Active | F132: EVFire Pumper | G132: 2008 | H132: International | I132: Pumper | K132: CG64208 | L132: 99,230 | M132: =VLOOKUP(Table1[[#This Row],[Fet.VIN / Serial Number]],[1]Sheet1!$A$1:$D$642, 4,FALSE) -> 0 | N132: 99,230 | R132: 2006 | S132: 2008-07-29 | T132: Comp Collision | U132: 11720 | V132: 202397
A133: 1FVACYCY5GHGZ6532 | B133: 9996532 2016 Freightliner M2 | C133: 999 | D133: Georgetown Fire | E133: Active | F133: HeavyTruck (78) | G133: 2016 | H133: Freightliner | I133: M2 | K133: CG74151 | L133: 51,517 | M133: =VLOOKUP(Table1[[#This Row],[Fet.VIN / Serial Number]],[1]Sheet1!$A$1:$D$642, 4,FALSE) -> 49,512 | N133: 51,517 | R133: 2015 | S133: 2015-07-29 | T133: Comp Collision | U133: 11790 | V133: 308205
A134: 1FDYF80ESVA30726 | B134: 9990726 1995 Ford Pumper | C134: 999 | D134: Georgetown Fire | E134: Active | F134: EVFire Pumper | G134: 1995 | H134: Ford | I134: Pumper | K134: CG41053 | L134: 84,294 | M134: =VLOOKUP(Table1[[#This Row],[Fet.VIN / Serial Number]],[1]Sheet1!$A$1:$D$642, 4,FALSE) -> 84,100 | N134: 84,294 | R134: 1995 | S134: 1997-05-01 | T134: Comp Collision | U134: 10020
A135: K80CVN75142 | B135: 9995142 1972 Ford Pumper | C135: 999 | D135: Georgetown Fire | E135: Active | F135: EVFire Pumper | G135: 1972 | H135: Ford | I135: Pumper | K135: CG36301 | L135: 58,414 | M135: =VLOOKUP(Table1[[#This Row],[Fet.VIN / Serial Number]],[1]Sheet1!$A$1:$D$642, 4,FALSE) -> 58,364 | N135: 58,414 | S135: 2007-05-21 | T135: Comp Collision | U135: 10270
A136: 1HTMKA2R78H557894 | B136: 9997894 2008 International 4400 | C136: 999 | D136: Georgetown Fire | E136: Active | F136: EVFire Pumper | G136: 2008 | H136: International | I136: 4400 | J136: SBA 4x2 Pumper | K136: CG65559 | L136: 92,229 | M136: =VLOOKUP(Table1[[#This Row],[Fet.VIN / Serial Number]],[1]Sheet1!$A$1:$D$642, 4,FALSE) -> 89,679 | N136: 92,229 | R136: 2009 | S136: 2009-12-28 | T136: Comp Collision | U136: 10160 | V136: 206741
A137: 1FVACYBS1DHFD5308 | B137: 9995308 2012 Freightliner Rescue | C137: 999 | D137: Georgetown Fire | E137: Active | F137: HeavyTruck (78) | G137: 2012 | H137: Freightliner | I137: Rescue | K137: CG69747 | L137: 37,144 | M137: =VLOOKUP(Table1[[#This Row],[Fet.VIN / Serial Number]],[1]Sheet1!$A$1:$D$642, 4,FALSE) -> 36,659 | N137: 37,144 | R137: 2012 | S137: 2012-12-07 | T137: Comp Collision | U137: 11620 | V137: 273180
A138: 3C7WRKCJ4MG562505 | B138: 9992505 2021 Dodge Ram Ambulance | C138: 999 | D138: Georgetown Fire | E138: Active | F138: EVAmbulance | G138: 2021 | H138: Dodge | I138: 4500 | J138: Ambulance | L138: 17,174 | M138: =VLOOKUP(Table1[[#This Row],[Fet.VIN / Serial Number]],[1]Sheet1!$A$1:$D$642, 4,FALSE) -> 0 | N138: 17,174 | S138: 2021-08-16 | V138: 144950
A139: 101520159 | B139: 9990159 2010 Husqvarna Zero Turn | C139: 999 | D139: Georgetown Fire | E139: Active | F139: Mower | G139: 2010 | H139: Husqvarna | I139: PZ6029FX | M139: =VLOOKUP(Table1[[#This Row],[Fet.VIN / Serial Number]],[1]Sheet1!$A$1:$D$642, 4,FALSE) -> 36,511 | N139: 36,511 | O139: Model: Mower, mostly unknowns VIN/Serial: Partial VIN from FVS 101520159 520159 partial transferred from Landfill? INS lists 1015201590 | S139: 2010-06-04 | T139: Inland Marine M130220021 | U139: 2790
A140: 1FVACYDC47HY41142 | B140: 9991142 2007 Freightliner M2106 Liberty Tanker | C140: 999 | D140: Georgetown Fire | E140: Active | F140: EVFire Pumper | G140: 2007 | H140: Freightliner | I140: M2106 Liberty Tanker | K140: CG62105 | L140: 44,332 | M140: =VLOOKUP(Table1[[#This Row],[Fet.VIN / Serial Number]],[1]Sheet1!$A$1:$D$642, 4,FALSE) -> 0 | N140: 44,332 | O140: M2106 Freightliner Cab Upfit MFG: American LaFrance Model: Liberty Tanker | R140: 2006 | S140: 2007-08-17 | T140: Comp Collision | U140: 11710 | V140: 163944
A141: 1FDYF80E5WVA07092 | B141: 9997092 1997 Ford Pumper | C141: 999 | D141: Georgetown Fire | E141: Active | F141: EVFire Pumper | G141: 1997 | H141: Ford | I141: Pumper | K141: CG43716 | L141: 58,517 | M141: =VLOOKUP(Table1[[#This Row],[Fet.VIN / Serial Number]],[1]Sheet1!$A$1:$D$642, 4,FALSE) -> 0 | N141: 58,517 | R141: 1997 | S141: 1997-05-01 | T141: Comp Collision | U141: 10040
A142: 1HTSDADR9YH691413 | B142: 9991413 1999 Pumper | C142: 999 | D142: Georgetown Fire | E142: Active | F142: EVFire Pumper | G142: 1999 | I142: Pumper | K142: CG74725 | L142: 105,167 | M142: =VLOOKUP(Table1[[#This Row],[Fet.VIN / Serial Number]],[1]Sheet1!$A$1:$D$642, 4,FALSE) -> 0 | N142: 105,167 | S142: 1999-09-24 | T142: Comp Collision | U142: 11870
A143: 1FVACYBS8DHFD5306 | B143: 9995306 2012 Freightliner Rescue | C143: 999 | D143: Georgetown Fire | E143: Active | F143: HeavyTruck (78) | G143: 2012 | H143: Freightliner | I143: Rescue | K143: CG69746 | L143: 44,931 | M143: =VLOOKUP(Table1[[#This Row],[Fet.VIN / Serial Number]],[1]Sheet1!$A$1:$D$642, 4,FALSE) -> 0 | N143: 44,931 | R143: 2012 | S143: 2012-12-07 | T143: Comp Collision | U143: 11600 | V143: 273180
A144: 1FD8W3G64BEB25999 | B144: 9995999 2011 Ford F350 | C144: 999 | D144: Georgetown Fire | E144: Active | F144: LightPickup | G144: 2011 | H144: Ford | I144: F350 | J144: Crew Cab | K144: CG67375 | L144: 57,637 | M144: =VLOOKUP(Table1[[#This Row],[Fet.VIN / Serial Number]],[1]Sheet1!$A$1:$D$642, 4,FALSE) -> 57,316 | N144: 57,637 | R144: 2010 | S144: 2011-02-08 | T144: Comp Collision | U144: 10260 | V144: 42087
A145: 44KFT4281WWZ18528 | B145: 9998528 1998 HME Fire Truck | C145: 999 | D145: Georgetown Fire | E145: Active | F145: HeavyTruck (78) | G145: 1998 | H145: HME | I145: Fire Truck | K145: CG82692 | L145: 8,245 | M145: =VLOOKUP(Table1[[#This Row],[Fet.VIN / Serial Number]],[1]Sheet1!$A$1:$D$642, 4,FALSE) -> 0 | N145: 8,245 | R145: 2020 | S145: 2020-02-11 | T145: Comp Collision | U145: 13240 | V145: 35000
A146: 1FVACYBSXDHFD5307 | B146: 9995307 2012 Freightliner Rescue | C146: 999 | D146: Georgetown Fire | E146: Active | F146: HeavyTruck (78) | G146: 2012 | H146: Freightliner | I146: Rescue | K146: CG69745 | L146: 32,235 | M146: =VLOOKUP(Table1[[#This Row],[Fet.VIN / Serial Number]],[1]Sheet1!$A$1:$D$642, 4,FALSE) -> 31,252 | N146: 32,235 | R146: 2012 | S146: 2012-12-07 | T146: Comp Collision | U146: 11610 | V146: 273180
A147: 1K9AF4286WN058857 | B147: 9998857 1998 KME Ariel | C147: 999 | D147: Georgetown Fire | E147: Active | F147: EVFire Ladder | G147: 1998 | H147: KME | I147: Ariel | K147: CG47437 | L147: 52,097 | M147: =VLOOKUP(Table1[[#This Row],[Fet.VIN / Serial Number]],[1]Sheet1!$A$1:$D$642, 4,FALSE) -> 52,057 | N147: 52,097 | S147: 1997-05-01 | T147: Comp Collision | U147: 11520
A148: 1GNSKDEC9LR273992 | B148: 9993992 2020 Chevrolet Tahoe | C148: 999 | D148: Georgetown Fire | E148: Active | F148: LightSUV | G148: 2020 | H148: Chevrolet | I148: Tahoe | K148: CG82774 | L148: 16,319 | M148: =VLOOKUP(Table1[[#This Row],[Fet.VIN / Serial Number]],[1]Sheet1!$A$1:$D$642, 4,FALSE) -> 0 | N148: 16,319 | O148: Upfit PO# 202000000486 | R148: 2020 | T148: Comp Collision | U148: 13360 | V148: 35924
A149: 4PICT02U9TA000332 | B149: 9990332 1996 Pierce Pumper | C149: 999 | D149: Georgetown Fire | E149: Active | F149: EVFire Pumper | G149: 1996 | H149: Pierce | I149: Pumper | L149: 23,199 | M149: =VLOOKUP(Table1[[#This Row],[Fet.VIN / Serial Number]],[1]Sheet1!$A$1:$D$642, 4,FALSE) -> 23,107 | N149: 23,199 | T149: Comp Collision | U149: 13230
A150: 1GNSKDEC9LR274012 | B150: 9994012 2020 Chevrolet Tahoe | C150: 999 | D150: Georgetown Fire | E150: Active | F150: LightSUV | G150: 2020 | H150: Chevrolet | I150: Tahoe | K150: CG82775 | L150: 11,971 | M150: =VLOOKUP(Table1[[#This Row],[Fet.VIN / Serial Number]],[1]Sheet1!$A$1:$D$642, 4,FALSE) -> 0 | N150: 11,971 | O150: Upfit PO# 202000000486 | R150: 2020 | T150: Comp Collision | U150: 13370 | V150: 25924
A151: 3C7WRKCJ2MG562504 | B151: 4112504 2021 Dodge Ram Ambulance | C151: 411 | D151: Georgetown Fire | E151: Active | F151: EVAmbulance | G151: 2021 | H151: Dodge | J151: Ambulance | L151: 3,763 | M151: =VLOOKUP(Table1[[#This Row],[Fet.VIN / Serial Number]],[1]Sheet1!$A$1:$D$642, 4,FALSE) -> 0 | N151: 3,763 | R151: 2022 | S151: 2022-01-13 | V151: 143850
A152: 1FVACYCY0GHGZ6535 | B152: 9996535 2015 Freightliner M2106 Rescue Pumper | C152: 999 | D152: Georgetown Fire | E152: Active | F152: EVFire Pumper | G152: 2015 | H152: Freightliner | I152: M2106 Rescue Pumper | K152: CG74150 | L152: 59,392 | M152: =VLOOKUP(Table1[[#This Row],[Fet.VIN / Serial Number]],[1]Sheet1!$A$1:$D$642, 4,FALSE) -> 56,953 | N152: 59,392 | R152: 2015 | S152: 2015-07-29 | T152: Comp Collision | U152: 11820 | V152: 308205
A153: 1GNSKLED2MR465193 | B153: 9995193 2021 Chevrolet Tahoe | C153: 999 | D153: Georgetown Fire | E153: Active | F153: LightSUV | G153: 2021 | H153: Chevrolet | I153: Tahoe | J153: PPV Pursuit 4x4 | L153: 243 | M153: =VLOOKUP(Table1[[#This Row],[Fet.VIN / Serial Number]],[1]Sheet1!$A$1:$D$642, 4,FALSE) -> 0 | N153: 243 | R153: 2022 | S153: 2021-12-10
A154: 1GNEK13Z33R290323 | B154: 4110323 2003 Chevrolet Tahoe | C154: 411 | D154: Georgetown Fire | E154: Active | F154: LightSUV | G154: 2003 | H154: Chevrolet | I154: Tahoe | K154: CG54996 | L154: 213,505 | M154: =VLOOKUP(Table1[[#This Row],[Fet.VIN / Serial Number]],[1]Sheet1!$A$1:$D$642, 4,FALSE) -> 213,369 | N154: 213,505 | R154: 2003 | S154: 2003-06-18 | T154: Comp Collision | U154: 10340
A155: 3C6TR5CT0JG377874 | B155: 9997874 2018 Dodge 2500 | C155: 999 | D155: Georgetown Fire | E155: Active | F155: LightPickup | G155: 2018 | H155: Dodge | I155: 2500 | K155: CG80604 | L155: 67,996 | M155: =VLOOKUP(Table1[[#This Row],[Fet.VIN / Serial Number]],[1]Sheet1!$A$1:$D$642, 4,FALSE) -> 69,271 | N155: 69,271 | O155: Ram | R155: 2018 | S155: 2019-02-15 | T155: Comp Collision | U155: 12830 | V155: 54451
A156: 1FV6JLCB7WH942695 | B156: 9992695 1998 Freightliner Pumper | C156: 999 | D156: Georgetown Fire | E156: Active | F156: EVFire Pumper | G156: 1998 | H156: Freightliner | I156: Pumper | J156: FL80 | K156: CG82685 | L156: 42,749 | M156: =VLOOKUP(Table1[[#This Row],[Fet.VIN / Serial Number]],[1]Sheet1!$A$1:$D$642, 4,FALSE) -> 0 | N156: 42,749 | O156: FL80 | T156: Comp Collision | U156: 13110
A157: 1FVACYBS6DHFD5305 | B157: 9995305 2012 Freightliner Rescue | C157: 999 | D157: Georgetown Fire | E157: Active | F157: HeavyTruck (78) | G157: 2012 | H157: Freightliner | I157: Rescue | K157: CG69744 | L157: 87,585 | M157: =VLOOKUP(Table1[[#This Row],[Fet.VIN / Serial Number]],[1]Sheet1!$A$1:$D$642, 4,FALSE) -> 85,672 | N157: 87,585 | R157: 2012 | S157: 2012-12-07 | T157: Comp Collision | U157: 11590 | V157: 273180
A158: 1FVACYDC47HY41141 | B158: 9991141 2007 Freightliner Tanker | C158: 999 | D158: Georgetown Fire | E158: Active | F158: HeavyTruck (78) | G158: 2007 | H158: Freightliner | I158: Tanker | K158: CG62106 | L158: 40,873 | M158: =VLOOKUP(Table1[[#This Row],[Fet.VIN / Serial Number]],[1]Sheet1!$A$1:$D$642, 4,FALSE) -> 0 | N158: 40,873 | R158: 2006 | S158: 2007-08-17 | T158: Comp Collision | U158: 10120 | V158: 163944
A159: 1HTMKAZRX6H335945 | B159: 9995945 2005 International Pumper | C159: 999 | D159: Georgetown Fire | E159: Active | F159: EVFire Pumper | G159: 2005 | H159: International | I159: Pumper | K159: CG61242 | L159: 105,772 | M159: =VLOOKUP(Table1[[#This Row],[Fet.VIN / Serial Number]],[1]Sheet1!$A$1:$D$642, 4,FALSE) -> 102,056 | N159: 105,772 | O159: Added updates from missing VIN list 0220159821309 Title No International 4400S | S159: 2005-09-01 | T159: Comp Collision | U159: 10090
A160: 1FVACYDC37HY41145 | B160: 9991145 2007 American LaFrance Fire Truck M2 Pumper | C160: 999 | D160: Georgetown Fire | E160: Active | F160: EVFire Pumper | G160: 2007 | H160: American LaFrance | I160: Fire Truck M2 Pumper | K160: CG62107 | L160: 94,134 | M160: =VLOOKUP(Table1[[#This Row],[Fet.VIN / Serial Number]],[1]Sheet1!$A$1:$D$642, 4,FALSE) -> 0 | N160: 94,134 | R160: 2006 | S160: 2007-04-30 | T160: Comp Collision | U160: 10130 | V160: 227753
A161: 1HTSDADR9YH691427 | B161: 9991427 1999 Pumper | C161: 999 | D161: Georgetown Fire | E161: Active | F161: HeavyTruck (78) | G161: 2000 | H161: International | I161: 4900 | J161: Pumper 4x2 | K161: CG75724 | L161: 70,419 | M161: =VLOOKUP(Table1[[#This Row],[Fet.VIN / Serial Number]],[1]Sheet1!$A$1:$D$642, 4,FALSE) -> 0 | N161: 70,419 | S161: 1999-09-24 | T161: Comp Collision | U161: 11890
A162: 4X47SEH2X2U201050 | B162: 9991050 2002 Carter Hazard Trailer | C162: 999 | D162: Georgetown Fire | E162: Active | F162: Trailer | G162: 2002 | H162: Carter | I162: Hazard Trailer | J162: GACM828TA3 4X4 TRAILER | M162: =VLOOKUP(Table1[[#This Row],[Fet.VIN / Serial Number]],[1]Sheet1!$A$1:$D$642, 4,FALSE) -> 0 | O162: 4X47SEH2X2U201050 FVS & fleet records 4X4TSEH2X2U201050 INS VIN | S162: 2008-12-12 | T162: Inland Marine M130220021 | U162: 3360
A163: 1FDYF80E2SVA30727 | B163: 9990727 1995 Ford Pumper | C163: 999 | D163: Georgetown Fire | E163: Active | F163: EVFire Pumper | G163: 1995 | H163: Ford | I163: Pumper | K163: CG41054 | L163: 84,928 | M163: =VLOOKUP(Table1[[#This Row],[Fet.VIN / Serial Number]],[1]Sheet1!$A$1:$D$642, 4,FALSE) -> 0 | N163: 84,928 | R163: 1995 | S163: 1997-05-01 | T163: Comp Collision | U163: 10030
A164: 1HTSDADR7YH691412 | B164: 9991412 1999 Pumper | C164: 999 | D164: Georgetown Fire | E164: Active | F164: EVFire Pumper | G164: 1999 | I164: Pumper | K164: CG75683 | L164: 67,306 | M164: =VLOOKUP(Table1[[#This Row],[Fet.VIN / Serial Number]],[1]Sheet1!$A$1:$D$642, 4,FALSE) -> 0 | N164: 67,306 | S164: 1999-09-24 | T164: Comp Collision | U164: 11880
A165: 2FDLFM6MCA88977 | B165: 9998977 1991 Ford F350 | C165: 999 | D165: Georgetown Fire | E165: Active | F165: LightPickup | G165: 1991 | H165: Ford | I165: F350 | K165: CG | L165: 21,394 | M165: =VLOOKUP(Table1[[#This Row],[Fet.VIN / Serial Number]],[1]Sheet1!$A$1:$D$642, 4,FALSE) -> 21,394 | N165: 21,394 | S165: 2008-07-29 | T165: Comp Collision | U165: 10140
A166: 1G9V5482XWE698017 | B166: 9998017 Unknown Goose Neck Trailer | C166: 999 | D166: Georgetown Fire | E166: Active | F166: Trailer | I166: Trailer | M166: =VLOOKUP(Table1[[#This Row],[Fet.VIN / Serial Number]],[1]Sheet1!$A$1:$D$642, 4,FALSE) -> 0 | N166: 0 | O166: 1G9U5482XWE698017 VIN in Holly Records, which is correct? | U166: 3870
A167: 1FVACYDC37HY41146 | B167: 9991146 2007 Freightliner Pumper | C167: 999 | D167: Georgetown Fire | E167: Active | F167: EVFire Pumper | G167: 2007 | H167: Freightliner | I167: Pumper | K167: CG62108 | L167: 120,545 | M167: =VLOOKUP(Table1[[#This Row],[Fet.VIN / Serial Number]],[1]Sheet1!$A$1:$D$642, 4,FALSE) -> 120,545 | N167: 120,545 | R167: 2006 | S167: 2007-04-30 | T167: Comp Collision | U167: 10100 | V167: 227753
A168: 1FVACYCY9GHGZ6534 | B168: 9996534 2016 Freightliner M4 | C168: 999 | D168: Georgetown Fire | E168: Active | F168: HeavyTruck (78) | G168: 2016 | H168: Freightliner | I168: M4 | K168: CG74153 | L168: 22,902 | M168: =VLOOKUP(Table1[[#This Row],[Fet.VIN / Serial Number]],[1]Sheet1!$A$1:$D$642, 4,FALSE) -> 0 | N168: 22,902 | R168: 2015 | S168: 2015-07-29 | T168: Comp Collision | U168: 11810 | V168: 308205
A169: 4EN6AA8751000581 | B169: 9990581 2005 EONE Typhoon | C169: 999 | D169: Georgetown Fire | E169: Active | F169: EVFire Ladder | G169: 2005 | H169: EONE | I169: Typhoon | J169: 50FT Ladder | L169: 188,858 | M169: =VLOOKUP(Table1[[#This Row],[Fet.VIN / Serial Number]],[1]Sheet1!$A$1:$D$642, 4,FALSE) -> 188,858 | N169: 188,858 | O169: 50FT Ladder | T169: Comp Collision | U169: 13560
A170: 1GDP7H1J1NJ500844 | B170: 9990844 1992 Pumper | C170: 999 | D170: Georgetown Fire | E170: Active | F170: EVFire Pumper | G170: 1992 | I170: Pumper | K170: CG35666 | L170: 91,444 | M170: =VLOOKUP(Table1[[#This Row],[Fet.VIN / Serial Number]],[1]Sheet1!$A$1:$D$642, 4,FALSE) -> 0 | N170: 91,444 | S170: 1997-05-01 | T170: Comp Collision | U170: 10230
A171: 1FVACYFE3JHJS0413 | B171: 9990413 2018 Freightliner Tanker | C171: 999 | D171: Georgetown Fire | E171: Active | F171: HeavyTruck (78) | G171: 2018 | H171: Freightliner | I171: Tanker | K171: CG80486 | L171: 8,194 | M171: =VLOOKUP(Table1[[#This Row],[Fet.VIN / Serial Number]],[1]Sheet1!$A$1:$D$642, 4,FALSE) -> 7,653 | N171: 8,194 | O171: (CDBG Grant Funded) SC Commerce #1036 | R171: 2017 | S171: 2018-04-18 | T171: Comp Collision | U171: 12380 | V171: 346474
A172: 1HTSDADR7YH691426 | B172: 9991426 1999 Pumper | C172: 999 | D172: Georgetown Fire | E172: Active | F172: EVFire Pumper | G172: 1999 | I172: Pumper | K172: CG75726 | L172: 111,846 | M172: =VLOOKUP(Table1[[#This Row],[Fet.VIN / Serial Number]],[1]Sheet1!$A$1:$D$642, 4,FALSE) -> 112,057 | N172: 112,057 | S172: 1999-09-24 | T172: Comp Collision | U172: 11860
A173: 1GNSK2E02BR375238 | B173: 9995238 2011 Chevrolet Tahoe | C173: 999 | D173: Georgetown Fire | E173: Active | F173: LightSUV | G173: 2011 | H173: Chevrolet | I173: Tahoe | J173: 4x4 | K173: CG69509 | L173: 131,094 | M173: =VLOOKUP(Table1[[#This Row],[Fet.VIN / Serial Number]],[1]Sheet1!$A$1:$D$642, 4,FALSE) -> 131,094 | N173: 131,094 | R173: 2012 | S173: 2012-06-05 | T173: Comp Collision | U173: 10290 | V173: 33145
A174: 1FT7W2B64KEG51597 | B174: 9991597 2019 Ford F250 | C174: 999 | D174: Georgetown Fire | E174: Active | F174: LightPickup | G174: 2019 | H174: Ford | I174: F250 | K174: CG81771 | L174: 29,751 | M174: =VLOOKUP(Table1[[#This Row],[Fet.VIN / Serial Number]],[1]Sheet1!$A$1:$D$642, 4,FALSE) -> 28,793 | N174: 29,751 | R174: 2019 | S174: 2019-11-01 | T174: Comp Collision | U174: 13130 | V174: 31720
A175: 1FVACYCY7GHGZ6533 | B175: 9996533 2016 Freightliner M3 | C175: 999 | D175: Georgetown Fire | E175: Active | F175: HeavyTruck (78) | G175: 2016 | H175: Freightliner | I175: M3 | K175: CG74152 | L175: 63,422 | M175: =VLOOKUP(Table1[[#This Row],[Fet.VIN / Serial Number]],[1]Sheet1!$A$1:$D$642, 4,FALSE) -> 60,628 | N175: 63,422 | R175: 2015 | S175: 2015-07-29 | T175: Comp Collision | U175: 11800 | V175: 308205
A176: 1FVABXBS21HH57501 | B176: 9997501 2001 Freightliner FL80 Rescue Truck | C176: 999 | D176: Georgetown Fire | E176: Active | F176: HeavyTruck (78) | G176: 2001 | H176: Freightliner | I176: FL80 Rescue Truck | K176: CG69513 | L176: 98,769 | M176: =VLOOKUP(Table1[[#This Row],[Fet.VIN / Serial Number]],[1]Sheet1!$A$1:$D$642, 4,FALSE) -> 98,564 | N176: 98,769 | S176: 2012-06-28 | T176: Comp Collision | U176: 10250
A177: 1FTFX1EF1EKG34888 | B177: 9994888 2014 Ford F150 | C177: 999 | D177: Georgetown Fire | E177: Active | F177: LightPickup | G177: 2014 | H177: Ford | I177: F150 | K177: CG72319 | L177: 96,679 | M177: =VLOOKUP(Table1[[#This Row],[Fet.VIN / Serial Number]],[1]Sheet1!$A$1:$D$642, 4,FALSE) -> 0 | N177: 96,679 | O177: CERP/Harry Avant | R177: 2015 | S177: 2015-01-22 | T177: Comp Collision | U177: 10790 | V177: 27514
A178: 1FTEX1CB8JFA98150 | B178: 1398150 2018 Ford F150 | C178: 140 | D178: Judicial Facility Management | E178: Active | F178: LightPickup | G178: 2018 | H178: Ford | I178: F150 | K178: CG78515 | L178: 25,306 | M178: =VLOOKUP(Table1[[#This Row],[Fet.VIN / Serial Number]],[1]Sheet1!$A$1:$D$642, 4,FALSE) -> 22,590 | N178: 25,306 | O178: Rob | R178: 2018 | S178: 2018-02-16 | T178: Comp Collision | U178: 12440 | V178: 23709
A179: 3N1CN8DV6ML908712 | B179: 5018712 2021 Nissan Versa | C179: 501 | D179: Library | E179: Active | F179: LightSedan | G179: 2021 | H179: Nissan | J179: Versa | K179: CG85126 | L179: 25 | M179: =VLOOKUP(Table1[[#This Row],[Fet.VIN / Serial Number]],[1]Sheet1!$A$1:$D$642, 4,FALSE) -> 0 | N179: 25 | R179: 2022 | S179: 2021-10-18 | T179: Comp Collision | U179: 13780 | V179: 19797
A180: 2C4RDGBG1CR373959 | B180: 9013959 2012 Dodge Caravan | C180: 901 | D180: Library | E180: Active | F180: LightVan Passenger | G180: 2012 | H180: Dodge | I180: Caravan | K180: CG69521 | L180: 117,825 | M180: =VLOOKUP(Table1[[#This Row],[Fet.VIN / Serial Number]],[1]Sheet1!$A$1:$D$642, 4,FALSE) -> 117,825 | N180: 117,825 | R180: 2012 | S180: 2012-07-27 | T180: Comp Collision | U180: 9100 | V180: 21637
A181: 1FMCU0F73JUA25454 | B181: 9015454 2018 Ford Escape | C181: 901 | D181: Library | E181: Active | F181: LightSUV | G181: 2018 | H181: Ford | I181: Escape | K181: CG78003 | L181: 39,700 | M181: =VLOOKUP(Table1[[#This Row],[Fet.VIN / Serial Number]],[1]Sheet1!$A$1:$D$642, 4,FALSE) -> 35,056 | N181: 39,700 | O181: Attributed to 010.111 Court in Fuelman? | P181: 2020-01-22 | R181: 2018 | S181: 2017-11-01 | T181: Comp Collision | U181: 12300 | V181: 19728
A182: 2C4RDGBGXCR373958 | B182: 5013958 2012 Dodge Caravan | C182: 501 | D182: Library | E182: Active | F182: LightVan Passenger | G182: 2012 | H182: Dodge | I182: Caravan | K182: CG69522 | L182: 145,528 | M182: =VLOOKUP(Table1[[#This Row],[Fet.VIN / Serial Number]],[1]Sheet1!$A$1:$D$642, 4,FALSE) -> 121,645 | N182: 145,528 | R182: 2012 | S182: 2012-07-27 | T182: Comp Collision | U182: 9110 | V182: 21637
A183: 1FDXE4FS2CDB30046 | B183: 5010046 2012 Ford F450 | C183: 501 | D183: Library | E183: Active | F183: LightPickup | G183: 2012 | H183: Ford | I183: F450 | J183: Bookmobile | K183: CG69742 | L183: 38,767 | M183: =VLOOKUP(Table1[[#This Row],[Fet.VIN / Serial Number]],[1]Sheet1!$A$1:$D$642, 4,FALSE) -> 35,792 | N183: 38,767 | R183: 2012 | S183: 2013-05-07 | T183: Comp Collision | U183: 9370 | V183: 111059
A184: 1FDWF36PX4EA41383 | B184: 9041383 2004 Ford F350 Ambulance | C184: 904 | D184: Midway EMS | E184: Active | F184: EVAmbulance | G184: 2004 | H184: Ford | I184: F350 | J184: Ambulance | K184: CG55025 | M184: =VLOOKUP(Table1[[#This Row],[Fet.VIN / Serial Number]],[1]Sheet1!$A$1:$D$642, 4,FALSE) -> 0 | N184: 0 | O184: Remount FY21...does this mean VIN becomes inactive? | V184: 120000
A185: 3C7WRKCJ8JG321414 | B185: 9041414 2018 Dodge Type 1 | C185: 904 | D185: Midway EMS | E185: Active | F185: EVAmbulance | G185: 2018 | H185: Dodge | I185: Type 1 | J185: Ambulance | K185: CG81311 | L185: 29,607 | M185: =VLOOKUP(Table1[[#This Row],[Fet.VIN / Serial Number]],[1]Sheet1!$A$1:$D$642, 4,FALSE) -> 29,607 | N185: 29,607 | O185: Upfit Vendor: Taylor Made Ambulances | R185: 2019 | S185: 2019-08-13 | T185: Comp Collision | U185: 13380 | V185: 118604
A186: 3C7WRKCJ4JG383229 | B186: 9043229 2018 Dodge 4500 | C186: 904 | D186: Midway EMS | E186: Active | F186: EVAmbulance | G186: 2018 | H186: Dodge | I186: 4500 | J186: Ambulance | K186: CG82702 | L186: 32,191 | M186: =VLOOKUP(Table1[[#This Row],[Fet.VIN / Serial Number]],[1]Sheet1!$A$1:$D$642, 4,FALSE) -> 34,004 | N186: 34,004 | O186: Upfit Vendor: Taylor Made Ambulances | R186: 2019 | S186: 2019-07-31 | T186: Comp Collision | U186: 13390 | V186: 122954
A187: 1FDUF5GT7MDA04778 | B187: 9044778 2021 Ford F550 Ambulance | C187: 904 | D187: Midway EMS | E187: Active | F187: EVAmbulance | G187: 2021 | H187: Ford | J187: F550 | L187: 5,502 | M187: =VLOOKUP(Table1[[#This Row],[Fet.VIN / Serial Number]],[1]Sheet1!$A$1:$D$642, 4,FALSE) -> 0 | N187: 5,502 | O187: ambulance remount arrival date? | S187: 2022-01-12
A188: 1HTJSSKK0DH188571 | B188: 9048571 2012 International Terra Star | C188: 904 | D188: Midway EMS | E188: Active | F188: HeavyTruck (78) | G188: 2012 | H188: International | I188: Terra Star | J188: Frazier | K188: CG69517 | L188: 163,213 | M188: =VLOOKUP(Table1[[#This Row],[Fet.VIN / Serial Number]],[1]Sheet1!$A$1:$D$642, 4,FALSE) -> 162,687 | N188: 163,213 | S188: 2012-06-13 | T188: Comp Collision | U188: 11570
A189: 1HTJSSKK2DH188572 | B189: 9048572 2012 International Terra Star | C189: 904 | D189: Midway EMS | E189: Active | F189: HeavyTruck (78) | G189: 2012 | H189: International | I189: Terra Star | J189: Frazier | K189: CG69516 | L189: 157,924 | M189: =VLOOKUP(Table1[[#This Row],[Fet.VIN / Serial Number]],[1]Sheet1!$A$1:$D$642, 4,FALSE) -> 157,924 | N189: 157,924 | S189: 2012-06-13 | T189: Comp Collision | U189: 11580
A190: SOM40742J617 | B190: 903J617 2017 SeaArk RIVER2 | C190: 903 | D190: Midway Fire Service | E190: Active | F190: Boat | G190: 2017 | H190: SeaArk | I190: 1660 MVT Rescue Boat | J190: 16' Aluminum | K190: SC1010DF | M190: =VLOOKUP(Table1[[#This Row],[Fet.VIN / Serial Number]],[1]Sheet1!$A$1:$D$642, 4,FALSE) -> 0 | N190: 0 | O190: Possible Ins Segment 820 IM D insurance lists Serial as SOM0742J617 possibly missing digit linked to Engine Yamaha 6BGL1058379 Trailer 1W7B11810H1000803 | R190: 2017 | S190: 2016-11-21 | T190: Inland Marine M130220021D | U190: 820 | V190: 16831.5
A191: 4ENLABA80K1002421 | B191: 9032421 2019 EONE Fire Truck | C191: 903 | D191: Midway Fire Service | E191: Active | F191: HeavyTruck (78) | G191: 2019 | H191: EONE | I191: Fire Truck | K191: CG81520 | L191: 22,505 | M191: =VLOOKUP(Table1[[#This Row],[Fet.VIN / Serial Number]],[1]Sheet1!$A$1:$D$642, 4,FALSE) -> 0 | N191: 22,505 | R191: 2020 | S191: 2019-09-17 | T191: Comp Collision | U191: 13010 | V191: 1465913
A192: KA5KC2GDBKLG055728 | B192: 9035728 2020 Kubota RTVX1100C | C192: 903 | D192: Midway Fire Service | E192: Active | F192: UTV/ATV | G192: 2020 | H192: Kubota | I192: RTVX1100C | J192: Rescue Skid | L192: 56 | M192: =VLOOKUP(Table1[[#This Row],[Fet.VIN / Serial Number]],[1]Sheet1!$A$1:$D$642, 4,FALSE) -> 0 | N192: 56
A193: 1FT7W2B65EE09123 | B193: 9039123 2014 Ford F250 | C193: 903 | D193: Midway Fire Service | E193: Active | F193: LightPickup | G193: 2014 | H193: Ford | I193: F250 | J193: 4x4 Crew Cab | K193: CG72302 | L193: 17,469 | M193: =VLOOKUP(Table1[[#This Row],[Fet.VIN / Serial Number]],[1]Sheet1!$A$1:$D$642, 4,FALSE) -> 17,077 | N193: 17,469 | O193: CORRECT VIN: 1FT7W2B65EEB09123 FVS VIN incorrect | R193: 2014 | S193: 2014-03-18 | T193: Comp Collision | U193: 10460 | V193: 25185
A194: 1N6AD0EV2JN771557 | B194: 9031557 2018 Nissan Frontier | C194: 903 | D194: Midway Fire Service | E194: Active | F194: LightSUV | G194: 2018 | H194: Nissan | I194: Frontier | K194: CG80013 | L194: 3,172 | M194: =VLOOKUP(Table1[[#This Row],[Fet.VIN / Serial Number]],[1]Sheet1!$A$1:$D$642, 4,FALSE) -> 2,997 | N194: 3,172 | R194: 2019 | S194: 2018-12-05 | T194: Comp Collision | U194: 12780 | V194: 24921
A195: 1FMJU1GT2GEF56687 | B195: 9036687 2017 Ford Expedition | C195: 903 | D195: Midway Fire Service | E195: Active | F195: LightSUV | G195: 2017 | H195: Ford | I195: Expedition | J195: BC | K195: CG76011 | L195: 126,306 | M195: =VLOOKUP(Table1[[#This Row],[Fet.VIN / Serial Number]],[1]Sheet1!$A$1:$D$642, 4,FALSE) -> 119,518 | N195: 126,306 | S195: 2017-01-03 | T195: Comp Collision | U195: 11900
A196: 1W7B1181OH1000802 | B196: 9030802 2017 Wesco Trailer RIVER3 | C196: 903 | D196: Midway Fire Service | E196: Active | F196: Boat | G196: 2017 | H196: Wesco | J196: BF1620FSE | M196: =VLOOKUP(Table1[[#This Row],[Fet.VIN / Serial Number]],[1]Sheet1!$A$1:$D$642, 4,FALSE) -> 0 | N196: 0 | T196: Inland Marine M130220021D | U196: 670
A197: 1N6AD0EVXJN751170 | B197: 9031170 2018 Nissan Frontier | C197: 903 | D197: Midway Fire Service | E197: Active | F197: LightSUV | G197: 2018 | H197: Nissan | I197: Frontier | K197: CG80012 | L197: 2,395 | M197: =VLOOKUP(Table1[[#This Row],[Fet.VIN / Serial Number]],[1]Sheet1!$A$1:$D$642, 4,FALSE) -> 2,369 | N197: 2,395 | R197: 2019 | S197: 2018-12-05 | T197: Comp Collision | U197: 12770 | V197: 24921
A198: LT120689EHLV | B198: 903EHLV 2009 Bae Tactical Truck | C198: 903 | D198: Midway Fire Service | E198: Active | F198: HeavyTruck (78) | G198: 2009 | H198: Bae | I198: Tactical Truck | L198: 5,746 | M198: =VLOOKUP(Table1[[#This Row],[Fet.VIN / Serial Number]],[1]Sheet1!$A$1:$D$642, 4,FALSE) ->  | N198: 5,746 | O198: Tactical Truck | T198: Comp Collision | U198: 13490
A199: 1SSTT35T5511SS949 | B199: 903S949 2005 Scotty Trailer | C199: 903 | D199: Midway Fire Service | E199: Active | F199: Trailer | G199: 2005 | H199: Scotty | I199: Trailer | J199: Fire Education Trailer | K199: CG85018 | M199: =VLOOKUP(Table1[[#This Row],[Fet.VIN / Serial Number]],[1]Sheet1!$A$1:$D$642, 4,FALSE) -> 0 | N199: 0 | S199: 2020-10-29 | T199: Inland Marine M130220021 | U199: 5230 | V199: 8904.6
A200: 1W7B31410L1000227 | B200: 9030227 2019 Wesco PWC SURF3 trailer | C200: 903 | D200: Midway Fire Service | E200: Active | F200: Trailer | H200: Wesco | J200: Personal Watercraft | M200: =VLOOKUP(Table1[[#This Row],[Fet.VIN / Serial Number]],[1]Sheet1!$A$1:$D$642, 4,FALSE) -> 0 | N200: 0 | O200: insurance # lumps group | S200: 2019-07-01 | T200: Inland Marine M130220021D | U200: 850 | V200: 1345
... 407 more rows

Sheet FOR BID
A1: ATTACHMENT B: VEHICLE AND EQUIPMENT LIST
A3: Fet.VIN / Serial Number | B3: ID | C3: Fet. Depart. Code | D3: Fet.Department | E3: Fet.Type | F3: Fet. Model Year | G3: Fet.Manufacturer | H3: Fet.Model | I3: Fet.Trim | J3: Fet. License Plate | K3: Mileage/ Hours
A4: 1P06120EPG0001862 | B4: 6091862 2017 John Deere | C4: 609 | D4: Airport Commission | E4: HeavyTractorMower | F4: 2017 | G4: John Deere | I4: 6120E | K4: 390
A5: 101926808 | B5: 6096808 2011 Husqvarna PZ5426 Zero Turn Mower | C5: 609 | D5: Airport Commission | E5: Mower | F5: 2011 | G5: Husqvarna | H5: PZ5426 Zero Turn Mower | K5: 1,030
A6: 1P0HX15FEHT079136 | B6: 6099136 2017 John Deere HX15 Brush Cutter | C6: 609 | D6: Airport Commission | E6: Mower | F6: 2017 | G6: John Deere | H6: HX15 Brush Cutter | K6: 0
A7: 5HABE10117N002527 | B7: 2527 2007 HMSTD Trailer | C7: 214 | D7: Alternate EOC | E7: Trailer | F7: 2007 | G7: Homesteader | H7: Trailer | I7: 610CS
A8: 5HABE10117N002530 | B8: 2530 2007 HMSTD Trailer | C8: 214 | D8: Alternate EOC | E8: Trailer | F8: 2007 | G8: Homesteader | H8: Trailer | I8: 610CS
A9: 1FTFX1EF0DKD65961 | B9: 2055961 2013 FORD F150 | C9: 205 | D9: Animal Control | E9: LightPickup | F9: 2013 | G9: Ford | I9: MARKED | J9: CG69735 | K9: 235,736
A10: 1FTFX1EF2FKD91593 | B10: 2051593 2015 FORD F150 | C10: 205 | D10: Animal Control | E10: LightPickup | F10: 2015 | G10: Ford | I10: MARKED animal control | J10: CG74050 | K10: 145,655
A11: 5N1AT3AB2MC697135 | B11: 1277135 2021 Nissan Rogue | C11: 127 | D11: Assessor | E11: LightSUV | F11: 2021 | G11: Nissan | H11: Rogue | J11: CG84357 | K11: 270
A12: 5N1AT3AB9MC709202 | B12: 1279202 2021 Nissan Rogue | C12: 127 | D12: Assessor | E12: LightSUV | F12: 2021 | G12: Nissan | H12: Rogue | J12: CG84358 | K12: 1,403
A13: 1FMCU93128KD64782 | B13: 1514782 2008 Ford Escape | C13: 151 | D13: Assessor | E13: LightSUV | F13: 2008 | G13: Ford | H13: Escape | J13: CG62148 | K13: 64,727
A14: 1FMCU0F77JUA25456 | B14: 1335456 2018 Ford Escape | C14: 133 | D14: Building Department | E14: LightSUV | F14: 2018 | G14: Ford | H14: Escape | J14: CG78004 | K14: 76,788
A15: 1FMCU0F75JUA25455 | B15: 1335455 2018 Ford Escape | C15: 133 | D15: Building Department | E15: LightSUV | F15: 2018 | G15: Ford | H15: Escape | I15: S 4x2 | J15: CG78005 | K15: 72,454
A16: 1FTFX1E59MKD26745 | B16: 1336745 2021 Ford F150 | C16: 133 | D16: Building Department | E16: LightPickup | F16: 2021 | G16: Ford | H16: F150 | J16: CG84355 | K16: 17,985
A17: 1FMCU0F79HUC12434 | B17: 1332434 2017 Ford Escape | C17: 133 | D17: Building Department | E17: LightSUV | F17: 2017 | G17: Ford | H17: Escape | J17: CG76322 | K17: 74,680
A18: 1FM5K7B82HGB22997 | B18: 2112997 2017 Ford Explorer | C18: 211 | D18: Coroner | E18: LightSUV | F18: 2017 | G18: Ford | H18: Explorer | J18: NFI225 | K18: 54,269
A19: 5N1AT3AA7MC692858 | B19: 1112858 2021 Nissan Rogue | C19: 111 | D19: Courts | E19: LightSUV | F19: 2021 | G19: Nissan | H19: Rogue | J19: CG84301 | K19: 5,114
A20: 2FABP7BV7BX111029 | B20: 2071029 2011 FORD Crown Victoria | C20: 207 | D20: Detention Center | E20: LEPatrol | F20: 2011 | G20: Ford | H20: Crown Victoria | J20: CG66841 | K20: 144,410
A21: 110116B003540 | B21: 2073540 2018 Husqvarna MZ61 Zero Turn Mower | C21: 207 | D21: Detention Center | E21: Mower | F21: 2018 | G21: Husqvarna | H21: MZ61 Zero Turn Mower | K21: 398
A22: 1FMEU63E48UA83775 | B22: 2072073775 2008 FORD EXPLORER | C22: 207 | D22: Detention Center | E22: LEUnmarked | F22: 2008 | G22: Ford | H22: Explorer | I22: GOLD | J22: DVZ891 | K22: 138,427
A23: 1GCZGHFG9K1364503 | B23: 2074503 2019 Chevrolet Express | C23: 207 | D23: Detention Center | E23: LightVan Passenger | F23: 2019 | G23: Chevrolet | H23: Express | I23: Van | J23: CG81681 | K23: 1,722
A24: 3042727 | B24: 2072727 2014 EZGO Golf Cart | C24: 207 | D24: Detention Center | E24: UTV/ATV | F24: 2014 | G24: EZGO | H24: Golf Cart | K24: 30
A25: 1FMJU1G55CEF47767 | B25: 2072077767 2012 FORD EXPEDITION | C25: 207 | D25: Detention Center | E25: LEPatrol | F25: 2012 | G25: Ford | H25: Expedition | I25: BLACK | J25: IBG696 | K25: 76,690
A26: 1C4RDJAG6MC575205 | B26: 2075205 2021 DODGE DURANGO | C26: 207 | D26: Detention Center | E26: LEUnmarked | F26: 2021 | G26: Dodge | H26: Durango | I26: WHITE | J26: TUP638 | K26: 12,142
A27: 1FBSS31L46DA76923 | B27: 2076923 2006 Ford Econoline | C27: 207 | D27: Detention Center | E27: LightVan Passenger | F27: 2006 | G27: Ford | H27: Econoline | I27: Club Wagon | J27: CG61257 | K27: 73,998
A28: 5BFAU1822CM018935 | B28: 2078935 2012 Leonard Leonard B12 Trash Trailer | C28: 207 | D28: Detention Center | E28: Trailer | F28: 2012 | G28: Leonard | H28: Leonard B12 Trash Trailer | I28: Litter Patrol | K28: 0
A29: 2C4RDGBG3DR628824 | B29: 2078824 2013 DODGE Grand Caravan | C29: 207 | D29: Detention Center | E29: LightVan Passenger | F29: 2013 | G29: Dodge | H29: Caravan | J29: CG69736 | K29: 57,138
A30: 1FM5K7B80FGB83780 | B30: 2072073780 2015 FORD EXPLORER | C30: 207 | D30: Detention Center | E30: LEUnmarked | F30: 2015 | G30: Ford | H30: Explorer | I30: BLACK | J30: KYY407 | K30: 76,844
A31: 2C4RDGBG6DR765630 | B31: 2072075630 2013 DODGE CARAVAN | C31: 207 | D31: Detention Center | E31: LightVan Passenger | F31: 2013 | G31: Dodge | H31: Caravan | I31: WHITE | J31: JIM523 | K31: 85,546
A32: 1FBSS3BL9ADA88007 | B32: 2072078007 2010 FORD EXPLORER | C32: 207 | D32: Detention Center | E32: LightVan Passenger | F32: 2010 | G32: Ford | H32: Explorer | I32: Club Wagon | J32: CG66243 | K32: 74,978
A33: 2G1WD5EM1B1206810 | B33: 2056810 2011 Chevrolet IMPALA | C33: 205 | D33: Detention Center | E33: LEUnmarked | F33: 2011 | G33: Chevrolet | H33: Impala | I33: BLACK | J33: QYL245 | K33: 159,339
A34: 1FDUF4GT0HEC16545 | B34: 4116545 2017 Ford F450 | C34: 411 | D34: Emergency Medical Service | E34: EVAmbulance | F34: 2017 | G34: Ford | H34: F450 | I34: Ambulance | J34: CG77210 | K34: 118,183
A35: 1HTJSSKK8FH729708 | B35: 4119708 2015 International Terra Star | C35: 411 | D35: Emergency Medical Service | E35: EVAmbulance | F35: 2015 | G35: International | H35: Terra Star | I35: Ambulance | J35: CG74048 | K35: 200,786
A36: 3C7WRKCJXHG643417 | B36: 4113417 2017 Dodge 4500 | C36: 411 | D36: Emergency Medical Service | E36: EVAmbulance | F36: 2017 | G36: Dodge | H36: 4500 | I36: Ambulance | J36: CG77212 | K36: 198,833
A37: 1HTJSSKK5EH797799 | B37: 4117799 2014 International Terra Star | C37: 411 | D37: Emergency Medical Service | E37: EVAmbulance | F37: 2014 | G37: International | H37: Terra Star | I37: Ambulance | J37: CG72301 | K37: 180,341
A38: 1HTJSSKKXHH452434 | B38: 4112434 2017 International Terra Star | C38: 411 | D38: Emergency Medical Service | E38: EVAmbulance | F38: 2017 | G38: International | H38: Terra Star | I38: Ambulance | J38: CG74160 | K38: 166,141
A39: 3C7WRKCJ1JG233854 | B39: 4113854 2018 Dodge 4500 | C39: 411 | D39: Emergency Medical Service | E39: EVAmbulance | F39: 2018 | G39: Dodge | H39: 4500 | I39: Ambulance | J39: CG78638 | K39: 115,970
A40: FB710003 | B40: 2130003 2008 Ruddy Flatbed Trailer | C40: 213 | D40: Emergency Preparedness | E40: Trailer | F40: 2008 | G40: Ruddy | H40: Flatbed Trailer | K40: 384
A41: 74720 | B41: 2134720 2018 Trailer | C41: 213 | D41: Emergency Preparedness | E41: Trailer | F41: 2018 | H41: Trailer | I41: Morgue Trailer | K41: 0
A42: 4DGEB2829GA037272 | B42: 2137272 2016 Cargo Craft Trailer | C42: 213 | D42: Emergency Preparedness | E42: Trailer | F42: 2016 | G42: Cargo Craft | H42: Trailer | K42: 0
A43: FB710004 | B43: 2130004 2008 Ruddy Flatbed Trailer | C43: 213 | D43: Emergency Preparedness | E43: Trailer | F43: 2008 | G43: Ruddy | H43: Flatbed Trailer | K43: 384
A44: 5HABE10137N002531 | B44: 2132531 2007 HMSTD Trailer | C44: 213 | D44: Emergency Preparedness | E44: Trailer | F44: 2007 | G44: Homesteader | H44: Trailer | K44: 0
A45: FB710001 | B45: 2130001 2008 Ruddy Flatbed Trailer | C45: 213 | D45: Emergency Preparedness | E45: Trailer | F45: 2008 | G45: Ruddy | H45: Flatbed Trailer | K45: 384
A46: 4XARTA870FB323183 | B46: 2133183 2016 Polaris Ranger | C46: 213 | D46: Emergency Preparedness | E46: UTV/ATV | F46: 2016 | G46: Polaris | H46: Ranger | I46: R15RTA87AR | K46: 528
A47: 4TELS1014E1021273 | B47: 2131273 2013 Currahee ATV Trailer | C47: 213 | D47: Emergency Preparedness | E47: Trailer | F47: 2013 | G47: Currahee | H47: ATV Trailer | K47: 2
A48: 54GVC16T4N7054273 | B48: 2134273 2022 Cargo Trailer 54273 | C48: 213 | D48: Emergency Preparedness | E48: TrailerUtility | F48: 2022 | G48: South GA | H48: Trailer | I48: 7x16 Tandem Axle Cargo Trailer | K48: 0
A49: 1FM5K8B80EGB02510 | B49: 2132510 2014 Ford Explorer | C49: 213 | D49: Emergency Preparedness | E49: LightSUV | F49: 2014 | G49: Ford | H49: Explorer | J49: CG71087 | K49: 132,999
A50: 5HABE10157N002532 | B50: 2132532 2007 HMSTD Trailer | C50: 213 | D50: Emergency Preparedness | E50: Trailer | F50: 2007 | G50: Homesteader | H50: Trailer
A51: 5UZBE081XBD017011 | B51: 2137011 2011 BNDTN Enclosed Utility Trailer | C51: 213 | D51: Emergency Preparedness | E51: Trailer | F51: 2011 | G51: Bendron | H51: Enclosed Utility Trailer | I51: Diamond Cargo Enclosed Trailer | K51: 0
A52: 3C6UR5CJ1LG205178 | B52: 2135178 2020 Dodge 2500 | C52: 213 | D52: Emergency Preparedness | E52: LightPickup | F52: 2020 | G52: Dodge | H52: 2500 | I52: Tradesman | J52: CG83452 | K52: 10,119
A53: 1N9NBB225LC322176 | B53: 2132176 2020 Nomad D20 Double Axle Trailer | C53: 213 | D53: Emergency Preparedness | E53: Trailer | F53: 2020 | G53: Nomad | H53: D20 Double Axle Trailer | K53: 0
A54: 1T0326EJPDJ251934 | B54: 3071934 2013 John Deere 326E Skid Steer | C54: 307 | D54: Environmental Services Collections | E54: Equip HeavyBackhoeLoader | F54: 2013 | G54: John Deere | H54: 326E Skid Steer | I54: skid steer | K54: 9,460
A55: 1FVHG3DV9EHFX1881 | B55: 3071881 2014 Freightliner Roll off | C55: 307 | D55: Environmental Services Collections | E55: HeavyTruck (78) | F55: 2014 | G55: Freightliner | H55: 114SD | I55: RollOff | J55: CG72300 | K55: 304,686
A56: 1FVMC5FE1JHJJ8476 | B56: 3078476 2018 Freightliner Boom Truck | C56: 307 | D56: Environmental Services Collections | E56: HeavyTruck (78) | F56: 2018 | G56: Freightliner | H56: Boom Truck | I56: Grapple Loader | J56: CG77303 | K56: 121,080
A57: 1FVHG3FE4JHJZ5742 | B57: 3075742 2018 Freightliner Roll off | C57: 307 | D57: Environmental Services Collections | E57: HeavyTruck (78) | F57: 2018 | G57: Freightliner | H57: 114SD | I57: RollOff | J57: CG79116 | K57: 148,109
A58: 3ALHG3FE4LDMH2958 | B58: 3072958 2958 | C58: 307 | D58: Environmental Services Collections | E58: HeavyTruck (78) | F58: 2020 | G58: Freightliner | H58: 114SD | I58: RollOff | J58: CG83215 | K58: 67,202
A59: 1FVHG3FE6LHLS6155 | B59: 3076155 2020 Freightliner Roll off | C59: 307 | D59: Environmental Services Collections | E59: HeavyTruck (78) | F59: 2020 | G59: Freightliner | H59: 114SD | I59: RollOff | J59: CG81712 | K59: 102,957
A60: 4YMBU1010HG071159 | B60: 3071159 2017 CarryOn Trailer | C60: 307 | D60: Environmental Services Collections | E60: Trailer | F60: 2017 | G60: CarryOn | H60: Trailer | I60: 6'x10' Landscape Trailer | K60: 0
A61: 1FVHG3DV4EHFK0501 | B61: 1510501 2013 Freightliner Roll off | C61: 151 | D61: Environmental Services Collections | E61: HeavyTruck (78) | F61: 2013 | G61: Freightliner | H61: 114SD | I61: RollOff | J61: CG69750 | K61: 286,822
A62: 1FVMC5FE5JHJX3741 | B62: 3073741 2018 Freightliner M2112 Grapple Boom Truck | C62: 307 | D62: Environmental Services Collections | E62: HeavyTruck (78) | F62: 2018 | G62: Freightliner | H62: M2112 Grapple Boom Truck | I62: Grapple Loader | J62: CG85118 | K62: 82,560
A63: 3ALHG3FE2LDMH2957 | B63: 3072957 2020 Freightliner Roll off | C63: 307 | D63: Environmental Services Collections | E63: HeavyTruck (78) | F63: 2020 | G63: Freightliner | H63: 114SD | I63: RollOff | J63: CG83216 | K63: 65,460
A64: 012320B001661 | B64: 3071661 2020 Husqvarna Z460 Mower | C64: 307 | D64: Environmental Services Collections | E64: Mower | F64: 2020 | G64: Husqvarna | H64: Z460 Mower | J64: AUX 22 | K64: 79,817
A65: 1FMCU9GDXJUA25458 | B65: 3075458 2018 Ford Escape | C65: 307 | D65: Environmental Services Collections | E65: LightSUV | F65: 2018 | G65: Ford | H65: Escape | I65: Recycle Car | J65: CG82708 | K65: 35,532
A66: 1FTWX33516ED84526 | B66: 3054526 2006 Ford F350 | C66: 305 | D66: Environmental Services Landfill | E66: LightPickup | F66: 2006 | G66: Ford | H66: F350 | J66: CG61260 | K66: 83,252
A67: 16MBB1010HD075604 | B67: 3055604 2017 MGS TRAIL Godwin Pump Trailer | C67: 305 | D67: Environmental Services Landfill | E67: Trailer | F67: 2017 | G67: MGS TRAIL | H67: Godwin Pump Trailer | I67: Blue Pump Trailer | K67: 0
A68: 1FT7X2B65BEB20180 | B68: 3050180 2011 Ford F250 | C68: 305 | D68: Environmental Services Landfill | E68: LightPickup | F68: 2011 | G68: Ford | H68: F250 | I68: Light Rescue | J68: CG66837 | K68: 97,703
A69: 1T0850KXCFF288729 | B69: 3058729 2016 John Deere 850K Bulldozer | C69: 305 | D69: Environmental Services Landfill | E69: Equip HeavyBulldozer | F69: 2016 | G69: John Deere | H69: 850K Bulldozer | I69: Waste HandlerTrash Dozer | K69: 7,451
A70: KBUMHDPCEK1K11180 | B70: 3051180 2019 Kubota M6131 Tractor | C70: 305 | D70: Environmental Services Landfill | E70: HeavyTractorMower | F70: 2019 | G70: Kubota | H70: M6131 Tractor | K70: 327
A71: PS079400018 | B71: 3050018 2015 LSC Environmental Products LSC PosiShell 2000R | C71: 305 | D71: Environmental Services Landfill | E71: TowedConstruction Equip | F71: 2015 | G71: LSC Environmental Products | H71: LSC PosiShell 2000R | K71: 565
A72: 1FVACXFE8MHMK3508 | B72: 3053508 2021 Freightliner M2106 Fuel Truck | C72: 305 | D72: Environmental Services Landfill | E72: MediumTruck Des 56 | F72: 2021 | G72: Freightliner | H72: M2106 Fuel Truck | I72: Fuel Truck | J72: CG82906 | K72: 2,281
A73: 50647 | B73: 3050647 2011 Kubota | C73: 305 | D73: Environmental Services Landfill | E73: HeavyTractorMower | F73: 2011 | G73: Kubota | I73: Tractor | K73: 2,134
A74: 5SPDG2639GW200675 | B74: 3050675 2016 Rampant Lowboy Trailer | C74: 305 | D74: Environmental Services Landfill | E74: TrailerHeavy | F74: 2016 | G74: Rampant | H74: Lowboy Trailer | J74: CG74157 | K74: 0
A75: 1T0850KXEF274347 | B75: 3054347 2015 John Deere | C75: 305 | D75: Environmental Services Landfill | E75: Equip HeavyBulldozer | F75: 2015 | G75: John Deere | H75: 850K Bulldozer | I75: Dirt Dozer | K75: 5,469
A76: 11796 | B76: 3051796 2017 Kubota F2690 | C76: 305 | D76: Environmental Services Landfill | E76: Mower | F76: 2017 | G76: Kubota | H76: F2690 | I76: Front Deck Mower | K76: 769
A77: 5HZBF162XELJE1330 | B77: 3051330 2014 VacTron LP533 SDT Vacuum Trailer | C77: 305 | D77: Environmental Services Landfill | E77: TowedConstruction Equip | F77: 2014 | G77: VacTron | H77: LP533 SDT Vacuum Trailer | K77: 86
A78: 1M2P296C01M056105 | B78: 3056105 2001 Mack Hydroforce | C78: 305 | D78: Environmental Services Landfill | E78: HeavyTruck (78) | F78: 2001 | G78: Mack | H78: Hydroforce | I78: Water Truck | J78: CG81711 | K78: 136,132
A79: 017534 | B79: 3057534 2021 Boom Mower3pt hitch | C79: 305 | D79: Environmental Services Landfill | E79: AccessoryAttachment | F79: 2021 | G79: Hardee | H79: LR50160 | I79: Side Cutter Attachement | K79: 0
A80: 1FTEW1E59KKF04360 | B80: 3054360 2019 Ford F150 | C80: 305 | D80: Environmental Services Landfill | E80: LightPickup | F80: 2019 | G80: Ford | H80: F150 | I80: 4x4 Super Cab | J80: CG81810 | K80: 4,464
A81: 1MG8383 | B81: 3058383 502 Hydro Max Engine | C81: 305 | D81: Environmental Services Landfill | E81: AccessoryAttachment | G81: Kubota | H81: D1105 | K81: 0
A82: RVA23492160 | B82: 3052160 2005 Finn T120LF Hydroseeder | C82: 305 | D82: Environmental Services Landfill | E82: TowedConstruction Equip | F82: 2005 | G82: Finncorp | H82: Hydroseeder T120TII | I82: LF2160 | K82: 375
A83: CAT0730CCTFF01154 | B83: 3051154 2015 Caterpillar ORT | C83: 305 | D83: Environmental Services Landfill | E83: HeavyDumpTandem | F83: 2015 | G83: Caterpillar | I83: Off Road Articulated Dump Truck | K83: 6,855
A84: 1635910 | B84: 3055910 2016 Global Pump Global Pump 6GST | C84: 305 | D84: Environmental Services Landfill | E84: AccessoryPump | F84: 2016 | G84: Global Pump | H84: Global Pump 6GST | K84: 1,591
A85: 1G9DD3029MB336433 | B85: 3056433 2021 Globe Trailer GTDD3023045YD | C85: 305 | D85: Environmental Services Landfill | E85: TrailerHeavy | F85: 2021 | G85: Globe Trailer | H85: GTDD3023045YD | I85: 45yard | J85: CG84361 | K85: 0
A86: 1XPCDP9X1MD771283 | B86: 3051283 2021 Peterbilt 567 | C86: 305 | D86: Environmental Services Landfill | E86: HeavySemiTractor | F86: 2021 | G86: Peterbilt | H86: 567 | I86: Road Tractor DayCab | J86: CG84104 | K86: 6,126
A87: 202109074466 | B87: 3054466 502 Hydro Max Pressure Washer | C87: 305 | D87: Environmental Services Landfill | E87: AccessoryAttachment | F87: 2021 | G87: Hydro Max | H87: DCD804KuG | K87: 0
A88: VCE0L90HV0S625946 | B88: 3055946 2021 Volvo Front End Loader | C88: 305 | D88: Environmental Services Landfill | E88: Equip HeavyBackhoeLoader | F88: 2021 | G88: Volvo | H88: L90H | I88: Front End Wheel Loader | K88: 66
A89: 4500P1312LR065654 | B89: 3055654 2020 Atlas Copco PAS150 Dewatering Pump | C89: 305 | D89: Environmental Services Landfill | E89: AccessoryPump | F89: 2020 | G89: Atlas Copco | H89: PAS150 Dewatering Pump | K89: 575
A90: 17643910/01 | B90: 3050/01 2017 Godwin Pump | C90: 305 | D90: Environmental Services Landfill | E90: AccessoryPump | F90: 2017 | G90: Godwin | H90: Pump | I90: CD150M Blue | K90: 2,794
A91: AT1156 | B91: 3051156 2017 Tana E380 Compactor | C91: 305 | D91: Environmental Services Landfill | E91: Heavy Equipment | F91: 2017 | G91: Tana | H91: E380 Compactor | K91: 4,322
A92: BLZCO222116932887 | B92: 3052887 2021 Hydro Max Trailer | C92: 305 | D92: Environmental Services Landfill | E92: Trailer | F92: 2021 | G92: Blazer Trailer | I92: 7'x14' Tandem Trailer with Power washer | K92: 0
A93: 1T0850KXKHF317797 | B93: 3057797 2017 John Deere Dozer850K | C93: 305 | D93: Environmental Services Landfill | E93: Equip HeavyBulldozer | F93: 2017 | G93: John Deere | H93: 850K Bulldozer | I93: Waste Handler Trash Dozer | K93: 6,951
A94: CAT0324DVJJG01055 | B94: 3051055 2009 Caterpillar | C94: 305 | D94: Environmental Services Landfill | E94: Equip HeavyExcavator | F94: 2009 | G94: Caterpillar | I94: 324 Tracked Exavator | K94: 8,587
A95: 0329EAPLW01134 | B95: 3051134 2013 Caterpillar 329 Excavator | C95: 305 | D95: Environmental Services Landfill | E95: Equip HeavyExcavator | F95: 2013 | G95: Caterpillar | H95: 329 | I95: Tracked Excavator | K95: 7,376
A96: VCEC250EK00314118 | B96: 3054118 2021 Volvo EC250E | C96: 305 | D96: Environmental Services Landfill | E96: Equip HeavyExcavator | F96: 2021 | G96: Volvo | H96: EC250E | I96: EC250E | K96: 320
A97: SN2160 | B97: 3052160 2007 Finncorp Hydroseeder T120TII | C97: 305 | D97: Environmental Services Landfill | E97: TowedConstruction Equip | F97: 2007 | G97: Finncorp | H97: Hydroseeder T120TII | K97: 2,120
A98: 1D9BU1823GG460048 | B98: 3050048 2016 KWPRD Trailer | C98: 305 | D98: Environmental Services Landfill | E98: Trailer | F98: 2016 | G98: KWPRD | H98: Trailer | I98: skid steer trailer | K98: 0
A99: 1FT7X2B67CEC99355 | B99: 3059355 2012 Ford F250 | C99: 305 | D99: Environmental Services Landfill | E99: LightPickup | F99: 2012 | G99: Ford | H99: F250 | I99: 4x4 | J99: CG69741 | K99: 70,620
A100: 1FTEW1E50JFC55843 | B100: 3055843 2018 Ford F150 | C100: 305 | D100: Environmental Services Landfill | E100: LightPickup | F100: 2018 | G100: Ford | H100: F150 | J100: CG79120 | K100: 29,228
A101: 201240401C4TL | B101: 305C4TL 2020 TarpOMatic | C101: 305 | D101: Environmental Services Landfill | E101: Equip HeavyTracked Construction | F101: 2020 | G101: TarpOMatic | K101: 0
A102: 1NPCXPEX4LD629578 | B102: 3059578 2020 Peterbilt Dump Truck | C102: 305 | D102: Environmental Services Landfill | E102: HeavyDumpTandem | F102: 2020 | G102: Peterbilt | H102: Dump Truck | J102: CG82904 | K102: 30,366
A103: 016631 | B103: 3056631 2020 Hardee PTS144 | C103: 305 | D103: Environmental Services Landfill | E103: AccessoryAttachment | F103: 2020 | G103: Hardee | H103: PTS144 | I103: Box Blade Attachment | K103: 0
A104: AT1170 | B104: 3051170 2018 Tana E380 Compactor | C104: 305 | D104: Environmental Services Landfill | E104: Heavy Equipment | F104: 2018 | G104: Tana | H104: E380 Compactor | K104: 4,454
A105: 1HBHR120300005 | B105: 3050005 2020 BHOG 2820RR1 Mower | C105: 305 | D105: Environmental Services Landfill | E105: AccessoryAttachment | F105: 2020 | G105: BushHog | H105: 2820RR1 Mower | K105: 236
A106: 1M0825MAKKM021330 | B106: 3141330 2019 John Deere Gator | C106: 314 | D106: Environmental Services Methane Gas Recovery | E106: UTV/ATV | F106: 2019 | G106: John Deere | H106: Gator | K106: 2,227
A107: 1T0330GKKKF352117 | B107: 3132117 2018 John Deere 330G Skid Steer | C107: 313 | D107: Environmental Services MRF | E107: Equip HeavyBackhoeLoader | F107: 2018 | G107: John Deere | H107: 330G Skid Steer | I107: skid steer | K107: 4,007
A108: 1132878 | B108: 3132878 2021 Erskine Forks | C108: 313 | D108: Environmental Services MRF | E108: AccessoryAttachment | F108: 2021 | I108: 48 inch | K108: 0
A109: 4YZDT122161010591 | B109: 3080591 2006 Proline Dump Trailer | C109: 308 | D109: Environmental Services Recycling | E109: Trailer | F109: 2006 | G109: Proline | H109: Dump Trailer | I109: PD613 | K109: 0
A110: 1FTBF2A65KEG08799 | B110: 3088799 2019 Ford F250 | C110: 308 | D110: Environmental Services Recycling | E110: LightPickup | F110: 2019 | G110: Ford | H110: F250 | I110: 4x2 campertop | J110: CG81770 | K110: 15,968
A111: 1P9FP1925KA277469 | B111: 3087469 2019 Protainer ProTilt 16 Tandem Trailer | C111: 308 | D111: Environmental Services Recycling | E111: Trailer | F111: 2019 | G111: Protainer | H111: ProTilt 16 Tandem Trailer | J111: CG81333 | K111: 3
A112: 1FTFX1CF3CFC22528 | B112: 3072528 2012 Ford F150 | C112: 307 | D112: Environmental Services Recycling | E112: LightPickup | F112: 2012 | G112: Ford | H112: F150 | I112: 4x2 | J112: CG69512 | K112: 80,595
A113: 1FVACWFCXMHMP8955 | B113: 3088955 2020 Freightliner M2 | C113: 308 | D113: Environmental Services Recycling | E113: MediumTruck Des 56 | F113: 2020 | G113: Freightliner | H113: M2 | I113: Viper Rear Loader | J113: CG84103 | K113: 17,437
A114: 1FTEX1C50KKE96617 | B114: 3086617 2019 Ford F150 | C114: 308 | D114: Environmental Services Recycling | E114: LightPickup | F114: 2019 | G114: Ford | H114: F150 | I114: 4x2 | J114: CG82687 | K114: 34,139
A115: 1P9RG21129A371003 | B115: 3081003 2008 Protainer Trailer | C115: 308 | D115: Environmental Services Recycling | E115: Trailer | F115: 2008 | G115: Protainer | H115: Trailer | I115: ProGravity Recycling Trailer | K115: 3
A116: 1FD7X2A68LEC23737 | B116: 1393737 2020 Ford F250 | C116: 139 | D116: Facility Services | E116: LightPickup | F116: 2020 | G116: Ford | H116: F250 | J116: CG82288 | K116: 5,673
A117: TRLC0012STD199 | B117: 139199 2005 TRAKK Trailer | C117: 139 | D117: Facility Services | E117: Trailer | F117: 2005 | G117: TRAKK | H117: Trailer | K117: 0
A118: 1FD7X2A68CEC33037 | B118: 1403037 2012 Ford F250 | C118: 139 | D118: Facility Services | E118: LightPickup | F118: 2012 | G118: Ford | H118: F250 | J118: CG69524 | K118: 80,916
A119: 1FD7X2A66LEC23736 | B119: 1393736 2020 Ford F250 | C119: 139 | D119: Facility Services | E119: LightPickup | F119: 2020 | G119: Ford | H119: F250 | J119: CG82289 | K119: 20,638
A120: 1FD7X2A64LEC23735 | B120: 1393735 2020 Ford F250 | C120: 139 | D120: Facility Services | E120: LightPickup | F120: 2020 | G120: Ford | H120: F250 | J120: CG82287 | K120: 15,386
A121: 1FD8X3G6XEEA11121 | B121: 1391121 2014 Ford F350 | C121: 139 | D121: Facility Services | E121: LightPickup | F121: 2014 | G121: Ford | H121: F350 | J121: CG71079 | K121: 66,775
A122: 11FTRX1C81GKF86263 | B122: 1396263 2016 Ford F150 | C122: 139 | D122: Facility Services | E122: LightPickup | F122: 2016 | G122: Ford | H122: F150 | I122: 4x2 Ext Cab | J122: CG76583 | K122: 54,835
A123: 5FTEE1814E1001542 | B123: 1391542 2013 Felling | C123: 139 | D123: Facility Services | E123: Trailer | F123: 2013 | G123: Felling | H123: FT4T Trailer | J123: CG71080 | K123: 0
A124: 1FD8W3A60HEB70231 | B124: 1390231 2017 Ford F350 | C124: 139 | D124: Facility Services | E124: LightPickup | F124: 2017 | G124: Ford | H124: F350 | J124: CG76729 | K124: 39,920
A125: 1FTSX20548ED50709 | B125: 1390709 2008 Ford F250 | C125: 139 | D125: Facility Services | E125: LightPickup | F125: 2008 | G125: Ford | H125: F250 | J125: CG62134 | K125: 125,403
A126: 1HTMKAANX8H543173 | B126: 1393173 2008 International 4400 | C126: 139 | D126: Facility Services | E126: HeavyTruck (78) | F126: 2008 | G126: International | H126: 4400 | I126: Bucket Truck | K126: 184,972
A127: 1FT7X2A64KED40718 | B127: 1390718 2019 Ford F150 | C127: 139 | D127: Facility Services | E127: LightPickup | F127: 2019 | G127: Ford | H127: F250 | J127: CG80245 | K127: 24,089
A128: KEN02YD0B696 | B128: 139B696 1996 Kenner Proskiff 17 | C128: 139 | D128: Facility Services | E128: Boat | F128: 1996 | H128: Kenner Proskiff 17 | J128: AUX 01 | K128: 0
A129: 10080 | B129: 1390080 1997 TRAKK Sky Trak 60362 | C129: 139 | D129: Facility Services | E129: HeavyForklift | F129: 1997 | G129: TRAKK | H129: Sky Trak 60362 | I129: Lull | K129: 4,720
A130: 1T9CU1820AK621770 | B130: 1391770 2010 CUSTM Utility Trailer | C130: 139 | D130: Facility Services | E130: Trailer | F130: 2010 | G130: CUSTM | H130: Utility Trailer | K130: 10
A131: 1T0317GJHGJ295548 | B131: 1395548 2016 John Deere | C131: 139 | D131: Facility Services | E131: Equip HeavyBackhoeLoader | F131: 2016 | G131: John Deere | H131: Skid Steer Loader 873 | I131: Skid Steer | K131: 535
A132: 5TTE2023C1039634 | B132: 3019634 2011 Felling | C132: 139 | D132: Facility Services | E132: TrailerHeavy | F132: 2011 | G132: Felling | K132: 101
A133: 1FMJU1G56CEF57207 | B133: 9997207 2012 Ford Expedition | C133: 999 | D133: Georgetown Fire | E133: LightSUV | F133: 2012 | G133: Ford | H133: Expedition | J133: CG69738 | K133: 188,491
A134: 1HTMKAZR48H557867 | B134: 9997867 2008 International Pumper | C134: 999 | D134: Georgetown Fire | E134: EVFire Pumper | F134: 2008 | G134: International | H134: Pumper | J134: CG64208 | K134: 99,230
A135: 1FVACYCY5GHGZ6532 | B135: 9996532 2016 Freightliner M2 | C135: 999 | D135: Georgetown Fire | E135: HeavyTruck (78) | F135: 2016 | G135: Freightliner | H135: M2 | J135: CG74151 | K135: 51,517
A136: 1FDYF80ESVA30726 | B136: 9990726 1995 Ford Pumper | C136: 999 | D136: Georgetown Fire | E136: EVFire Pumper | F136: 1995 | G136: Ford | H136: Pumper | J136: CG41053 | K136: 84,294
A137: K80CVN75142 | B137: 9995142 1972 Ford Pumper | C137: 999 | D137: Georgetown Fire | E137: EVFire Pumper | F137: 1972 | G137: Ford | H137: Pumper | J137: CG36301 | K137: 58,414
A138: 1HTMKA2R78H557894 | B138: 9997894 2008 International 4400 | C138: 999 | D138: Georgetown Fire | E138: EVFire Pumper | F138: 2008 | G138: International | H138: 4400 | I138: SBA 4x2 Pumper | J138: CG65559 | K138: 92,229
A139: 1FVACYBS1DHFD5308 | B139: 9995308 2012 Freightliner Rescue | C139: 999 | D139: Georgetown Fire | E139: HeavyTruck (78) | F139: 2012 | G139: Freightliner | H139: Rescue | J139: CG69747 | K139: 37,144
A140: 3C7WRKCJ4MG562505 | B140: 9992505 2021 Dodge Ram Ambulance | C140: 999 | D140: Georgetown Fire | E140: EVAmbulance | F140: 2021 | G140: Dodge | H140: 4500 | I140: Ambulance | K140: 17,174
A141: 101520159 | B141: 9990159 2010 Husqvarna Zero Turn | C141: 999 | D141: Georgetown Fire | E141: Mower | F141: 2010 | G141: Husqvarna | H141: PZ6029FX | K141: 36,511
A142: 1FVACYDC47HY41142 | B142: 9991142 2007 Freightliner M2106 Liberty Tanker | C142: 999 | D142: Georgetown Fire | E142: EVFire Pumper | F142: 2007 | G142: Freightliner | H142: M2106 Liberty Tanker | J142: CG62105 | K142: 44,332
A143: 1FDYF80E5WVA07092 | B143: 9997092 1997 Ford Pumper | C143: 999 | D143: Georgetown Fire | E143: EVFire Pumper | F143: 1997 | G143: Ford | H143: Pumper | J143: CG43716 | K143: 58,517
A144: 1HTSDADR9YH691413 | B144: 9991413 1999 Pumper | C144: 999 | D144: Georgetown Fire | E144: EVFire Pumper | F144: 1999 | H144: Pumper | J144: CG74725 | K144: 105,167
A145: 1FVACYBS8DHFD5306 | B145: 9995306 2012 Freightliner Rescue | C145: 999 | D145: Georgetown Fire | E145: HeavyTruck (78) | F145: 2012 | G145: Freightliner | H145: Rescue | J145: CG69746 | K145: 44,931
A146: 1FD8W3G64BEB25999 | B146: 9995999 2011 Ford F350 | C146: 999 | D146: Georgetown Fire | E146: LightPickup | F146: 2011 | G146: Ford | H146: F350 | I146: Crew Cab | J146: CG67375 | K146: 57,637
A147: 44KFT4281WWZ18528 | B147: 9998528 1998 HME Fire Truck | C147: 999 | D147: Georgetown Fire | E147: HeavyTruck (78) | F147: 1998 | G147: HME | H147: Fire Truck | J147: CG82692 | K147: 8,245
A148: 1FVACYBSXDHFD5307 | B148: 9995307 2012 Freightliner Rescue | C148: 999 | D148: Georgetown Fire | E148: HeavyTruck (78) | F148: 2012 | G148: Freightliner | H148: Rescue | J148: CG69745 | K148: 32,235
A149: 1K9AF4286WN058857 | B149: 9998857 1998 KME Ariel | C149: 999 | D149: Georgetown Fire | E149: EVFire Ladder | F149: 1998 | G149: KME | H149: Ariel | J149: CG47437 | K149: 52,097
A150: 1GNSKDEC9LR273992 | B150: 9993992 2020 Chevrolet Tahoe | C150: 999 | D150: Georgetown Fire | E150: LightSUV | F150: 2020 | G150: Chevrolet | H150: Tahoe | J150: CG82774 | K150: 16,319
A151: 4PICT02U9TA000332 | B151: 9990332 1996 Pierce Pumper | C151: 999 | D151: Georgetown Fire | E151: EVFire Pumper | F151: 1996 | G151: Pierce | H151: Pumper | K151: 23,199
A152: 1GNSKDEC9LR274012 | B152: 9994012 2020 Chevrolet Tahoe | C152: 999 | D152: Georgetown Fire | E152: LightSUV | F152: 2020 | G152: Chevrolet | H152: Tahoe | J152: CG82775 | K152: 11,971
A153: 3C7WRKCJ2MG562504 | B153: 4112504 2021 Dodge Ram Ambulance | C153: 411 | D153: Georgetown Fire | E153: EVAmbulance | F153: 2021 | G153: Dodge | I153: Ambulance | K153: 3,763
A154: 1FVACYCY0GHGZ6535 | B154: 9996535 2015 Freightliner M2106 Rescue Pumper | C154: 999 | D154: Georgetown Fire | E154: EVFire Pumper | F154: 2015 | G154: Freightliner | H154: M2106 Rescue Pumper | J154: CG74150 | K154: 59,392
A155: 1GNSKLED2MR465193 | B155: 9995193 2021 Chevrolet Tahoe | C155: 999 | D155: Georgetown Fire | E155: LightSUV | F155: 2021 | G155: Chevrolet | H155: Tahoe | I155: PPV Pursuit 4x4 | K155: 243
A156: 1GNEK13Z33R290323 | B156: 4110323 2003 Chevrolet Tahoe | C156: 411 | D156: Georgetown Fire | E156: LightSUV | F156: 2003 | G156: Chevrolet | H156: Tahoe | J156: CG54996 | K156: 213,505
A157: 3C6TR5CT0JG377874 | B157: 9997874 2018 Dodge 2500 | C157: 999 | D157: Georgetown Fire | E157: LightPickup | F157: 2018 | G157: Dodge | H157: 2500 | J157: CG80604 | K157: 69,271
A158: 1FV6JLCB7WH942695 | B158: 9992695 1998 Freightliner Pumper | C158: 999 | D158: Georgetown Fire | E158: EVFire Pumper | F158: 1998 | G158: Freightliner | H158: Pumper | I158: FL80 | J158: CG82685 | K158: 42,749
A159: 1FVACYBS6DHFD5305 | B159: 9995305 2012 Freightliner Rescue | C159: 999 | D159: Georgetown Fire | E159: HeavyTruck (78) | F159: 2012 | G159: Freightliner | H159: Rescue | J159: CG69744 | K159: 87,585
A160: 1FVACYDC47HY41141 | B160: 9991141 2007 Freightliner Tanker | C160: 999 | D160: Georgetown Fire | E160: HeavyTruck (78) | F160: 2007 | G160: Freightliner | H160: Tanker | J160: CG62106 | K160: 40,873
A161: 1HTMKAZRX6H335945 | B161: 9995945 2005 International Pumper | C161: 999 | D161: Georgetown Fire | E161: EVFire Pumper | F161: 2005 | G161: International | H161: Pumper | J161: CG61242 | K161: 105,772
A162: 1FVACYDC37HY41145 | B162: 9991145 2007 American LaFrance Fire Truck M2 Pumper | C162: 999 | D162: Georgetown Fire | E162: EVFire Pumper | F162: 2007 | G162: American LaFrance | H162: Fire Truck M2 Pumper | J162: CG62107 | K162: 94,134
A163: 1HTSDADR9YH691427 | B163: 9991427 1999 Pumper | C163: 999 | D163: Georgetown Fire | E163: HeavyTruck (78) | F163: 2000 | G163: International | H163: 4900 | I163: Pumper 4x2 | J163: CG75724 | K163: 70,419
A164: 4X47SEH2X2U201050 | B164: 9991050 2002 Carter Hazard Trailer | C164: 999 | D164: Georgetown Fire | E164: Trailer | F164: 2002 | G164: Carter | H164: Hazard Trailer | I164: GACM828TA3 4X4 TRAILER
A165: 1FDYF80E2SVA30727 | B165: 9990727 1995 Ford Pumper | C165: 999 | D165: Georgetown Fire | E165: EVFire Pumper | F165: 1995 | G165: Ford | H165: Pumper | J165: CG41054 | K165: 84,928
A166: 1HTSDADR7YH691412 | B166: 9991412 1999 Pumper | C166: 999 | D166: Georgetown Fire | E166: EVFire Pumper | F166: 1999 | H166: Pumper | J166: CG75683 | K166: 67,306
A167: 2FDLFM6MCA88977 | B167: 9998977 1991 Ford F350 | C167: 999 | D167: Georgetown Fire | E167: LightPickup | F167: 1991 | G167: Ford | H167: F350 | J167: CG | K167: 21,394
A168: 1G9V5482XWE698017 | B168: 9998017 Unknown Goose Neck Trailer | C168: 999 | D168: Georgetown Fire | E168: Trailer | H168: Trailer | K168: 0
A169: 1FVACYDC37HY41146 | B169: 9991146 2007 Freightliner Pumper | C169: 999 | D169: Georgetown Fire | E169: EVFire Pumper | F169: 2007 | G169: Freightliner | H169: Pumper | J169: CG62108 | K169: 120,545
A170: 1FVACYCY9GHGZ6534 | B170: 9996534 2016 Freightliner M4 | C170: 999 | D170: Georgetown Fire | E170: HeavyTruck (78) | F170: 2016 | G170: Freightliner | H170: M4 | J170: CG74153 | K170: 22,902
A171: 4EN6AA8751000581 | B171: 9990581 2005 EONE Typhoon | C171: 999 | D171: Georgetown Fire | E171: EVFire Ladder | F171: 2005 | G171: EONE | H171: Typhoon | I171: 50FT Ladder | K171: 188,858
A172: 1GDP7H1J1NJ500844 | B172: 9990844 1992 Pumper | C172: 999 | D172: Georgetown Fire | E172: EVFire Pumper | F172: 1992 | H172: Pumper | J172: CG35666 | K172: 91,444
A173: 1FVACYFE3JHJS0413 | B173: 9990413 2018 Freightliner Tanker | C173: 999 | D173: Georgetown Fire | E173: HeavyTruck (78) | F173: 2018 | G173: Freightliner | H173: Tanker | J173: CG80486 | K173: 8,194
A174: 1HTSDADR7YH691426 | B174: 9991426 1999 Pumper | C174: 999 | D174: Georgetown Fire | E174: EVFire Pumper | F174: 1999 | H174: Pumper | J174: CG75726 | K174: 112,057
A175: 1GNSK2E02BR375238 | B175: 9995238 2011 Chevrolet Tahoe | C175: 999 | D175: Georgetown Fire | E175: LightSUV | F175: 2011 | G175: Chevrolet | H175: Tahoe | I175: 4x4 | J175: CG69509 | K175: 131,094
A176: 1FT7W2B64KEG51597 | B176: 9991597 2019 Ford F250 | C176: 999 | D176: Georgetown Fire | E176: LightPickup | F176: 2019 | G176: Ford | H176: F250 | J176: CG81771 | K176: 29,751
A177: 1FVACYCY7GHGZ6533 | B177: 9996533 2016 Freightliner M3 | C177: 999 | D177: Georgetown Fire | E177: HeavyTruck (78) | F177: 2016 | G177: Freightliner | H177: M3 | J177: CG74152 | K177: 63,422
A178: 1FVABXBS21HH57501 | B178: 9997501 2001 Freightliner FL80 Rescue Truck | C178: 999 | D178: Georgetown Fire | E178: HeavyTruck (78) | F178: 2001 | G178: Freightliner | H178: FL80 Rescue Truck | J178: CG69513 | K178: 98,769
A179: 1FTFX1EF1EKG34888 | B179: 9994888 2014 Ford F150 | C179: 999 | D179: Georgetown Fire | E179: LightPickup | F179: 2014 | G179: Ford | H179: F150 | J179: CG72319 | K179: 96,679
A180: 1FTEX1CB8JFA98150 | B180: 1398150 2018 Ford F150 | C180: 140 | D180: Judicial Facility Management | E180: LightPickup | F180: 2018 | G180: Ford | H180: F150 | J180: CG78515 | K180: 25,306
A181: 3N1CN8DV6ML908712 | B181: 5018712 2021 Nissan Versa | C181: 501 | D181: Library | E181: LightSedan | F181: 2021 | G181: Nissan | I181: Versa | J181: CG85126 | K181: 25
A182: 2C4RDGBG1CR373959 | B182: 9013959 2012 Dodge Caravan | C182: 901 | D182: Library | E182: LightVan Passenger | F182: 2012 | G182: Dodge | H182: Caravan | J182: CG69521 | K182: 117,825
A183: 1FMCU0F73JUA25454 | B183: 9015454 2018 Ford Escape | C183: 901 | D183: Library | E183: LightSUV | F183: 2018 | G183: Ford | H183: Escape | J183: CG78003 | K183: 39,700
A184: 2C4RDGBGXCR373958 | B184: 5013958 2012 Dodge Caravan | C184: 501 | D184: Library | E184: LightVan Passenger | F184: 2012 | G184: Dodge | H184: Caravan | J184: CG69522 | K184: 145,528
A185: 1FDXE4FS2CDB30046 | B185: 5010046 2012 Ford F450 | C185: 501 | D185: Library | E185: LightPickup | F185: 2012 | G185: Ford | H185: F450 | I185: Bookmobile | J185: CG69742 | K185: 38,767
A186: 1FDWF36PX4EA41383 | B186: 9041383 2004 Ford F350 Ambulance | C186: 904 | D186: Midway EMS | E186: EVAmbulance | F186: 2004 | G186: Ford | H186: F350 | I186: Ambulance | J186: CG55025 | K186: 0
A187: 3C7WRKCJ8JG321414 | B187: 9041414 2018 Dodge Type 1 | C187: 904 | D187: Midway EMS | E187: EVAmbulance | F187: 2018 | G187: Dodge | H187: Type 1 | I187: Ambulance | J187: CG81311 | K187: 29,607
A188: 3C7WRKCJ4JG383229 | B188: 9043229 2018 Dodge 4500 | C188: 904 | D188: Midway EMS | E188: EVAmbulance | F188: 2018 | G188: Dodge | H188: 4500 | I188: Ambulance | J188: CG82702 | K188: 34,004
A189: 1FDUF5GT7MDA04778 | B189: 9044778 2021 Ford F550 Ambulance | C189: 904 | D189: Midway EMS | E189: EVAmbulance | F189: 2021 | G189: Ford | I189: F550 | K189: 5,502
A190: 1HTJSSKK0DH188571 | B190: 9048571 2012 International Terra Star | C190: 904 | D190: Midway EMS | E190: HeavyTruck (78) | F190: 2012 | G190: International | H190: Terra Star | I190: Frazier | J190: CG69517 | K190: 163,213
A191: 1HTJSSKK2DH188572 | B191: 9048572 2012 International Terra Star | C191: 904 | D191: Midway EMS | E191: HeavyTruck (78) | F191: 2012 | G191: International | H191: Terra Star | I191: Frazier | J191: CG69516 | K191: 157,924
A192: SOM40742J617 | B192: 903J617 2017 SeaArk RIVER2 | C192: 903 | D192: Midway Fire Service | E192: Boat | F192: 2017 | G192: SeaArk | H192: 1660 MVT Rescue Boat | I192: 16' Aluminum | J192: SC1010DF | K192: 0
A193: 4ENLABA80K1002421 | B193: 9032421 2019 EONE Fire Truck | C193: 903 | D193: Midway Fire Service | E193: HeavyTruck (78) | F193: 2019 | G193: EONE | H193: Fire Truck | J193: CG81520 | K193: 22,505
A194: KA5KC2GDBKLG055728 | B194: 9035728 2020 Kubota RTVX1100C | C194: 903 | D194: Midway Fire Service | E194: UTV/ATV | F194: 2020 | G194: Kubota | H194: RTVX1100C | I194: Rescue Skid | K194: 56
A195: 1FT7W2B65EE09123 | B195: 9039123 2014 Ford F250 | C195: 903 | D195: Midway Fire Service | E195: LightPickup | F195: 2014 | G195: Ford | H195: F250 | I195: 4x4 Crew Cab | J195: CG72302 | K195: 17,469
A196: 1N6AD0EV2JN771557 | B196: 9031557 2018 Nissan Frontier | C196: 903 | D196: Midway Fire Service | E196: LightSUV | F196: 2018 | G196: Nissan | H196: Frontier | J196: CG80013 | K196: 3,172
A197: 1FMJU1GT2GEF56687 | B197: 9036687 2017 Ford Expedition | C197: 903 | D197: Midway Fire Service | E197: LightSUV | F197: 2017 | G197: Ford | H197: Expedition | I197: BC | J197: CG76011 | K197: 126,306
A198: 1W7B1181OH1000802 | B198: 9030802 2017 Wesco Trailer RIVER3 | C198: 903 | D198: Midway Fire Service | E198: Boat | F198: 2017 | G198: Wesco | I198: BF1620FSE | K198: 0
A199: 1N6AD0EVXJN751170 | B199: 9031170 2018 Nissan Frontier | C199: 903 | D199: Midway Fire Service | E199: LightSUV | F199: 2018 | G199: Nissan | H199: Frontier | J199: CG80012 | K199: 2,395
A200: LT120689EHLV | B200: 903EHLV 2009 Bae Tactical Truck | C200: 903 | D200: Midway Fire Service | E200: HeavyTruck (78) | F200: 2009 | G200: Bae | H200: Tactical Truck | K200: 5,746
A201: 1SSTT35T5511SS949 | B201: 903S949 2005 Scotty Trailer | C201: 903 | D201: Midway Fire Service | E201: Trailer | F201: 2005 | G201: Scotty | H201: Trailer | I201: Fire Education Trailer | J201: CG85018 | K201: 0
... 408 more rows
